Workbook

Sheet MTK2_UAH (hidden)
A2: Державний та гарантований державою борг України за поточний рік
C4: =VALUAH -> млрд. грн
B5: 2016-12-31 | C5: 2017-01-31
A6: Загальна сума державного та гарантованого державою боргу | B6: =B$7+B$44 -> 1929.761152 | C6: 1931.019165
A7: Внутрішній борг | B7: =B$8+B$31 -> 689.7300058 | C7: 689.6916673
A8: Державний борг | B8: =B$9+B$29 -> 670.6455305 | C8: 670.6400111
A9: 1. Заборгованість за випущеними цінними паперами на внутрішньому ринку | B9: =SUM(B$10:B$28) -> 668.1327326 | C9: 668.1272131
A10: ОВДП (10 - річні) | B10: 74.832983 | C10: 74.832983
A11: ОВДП (11 - річні) | B11: 17.382981 | C11: 17.382981
A12: ОВДП (12 - місячні) | B12: 3.47757 | C12: 3.45757
A13: ОВДП (12 - річні) | B13: 28.5 | C13: 28.5
A14: ОВДП (13 - річні) | B14: 37.11763 | C14: 37.11763
A15: ОВДП (14 - річні) | B15: 51.25 | C15: 51.25
A16: ОВДП (15 - річні) | B16: 42.789838 | C16: 42.789838
A17: ОВДП (18 - місячні) | B17: 29.25796141 | C17: 29.18067935
A18: ОВДП (2 - річні) | B18: 64.35343953 | C18: 64.33258522
A19: ОВДП (3 - місячні) | B19: 0.01 | C19: 0.01
A20: ОВДП (3 - річні) | B20: 18.462385 | C20: 19.409305
A21: ОВДП (4 - річні) | B21: 15.58553728 | C21: 15.57404576
A22: ОВДП (5 - річні) | B22: 151.5696514 | C22: 150.9532078
A23: ОВДП (6 - місячні) | B23: 0.215801 | C23: 0.01
A24: ОВДП (6 - річні) | B24: 24.1 | C24: 24.1
A25: ОВДП (7 - річні) | B25: 44.739791 | C25: 44.739791
A26: ОВДП (8 - річні) | B26: 27.416198 | C26: 27.416198
A27: ОВДП (9 - місячні) | B27: 0.196567 | C27: 0.196
A28: ОВДП (9 - річні) | B28: 36.874399 | C28: 36.874399
A29: 2. Заборгованість перед банківськими та іншими фінансовими установами | B29: =SUM(B$30:B$30) -> 2.512797928 | C29: 2.512797928
A30: Національний банк України | B30: 2.512797928 | C30: 2.512797928
A31: Гарантований державою борг | B31: =B$32+B$39+B$42 -> 19.08447525 | C31: 19.05165624
A32: 1. Заборгованість за випущеними цінними паперами на внутрішньому ринку | B32: =SUM(B$33:B$38) -> 15.9500116 | C32: 15.9500116
A33: Державні цінні папери | B33: 1.16e-05 | C33: 1.16e-05
A34: Облігації ДІУ (10 - річні) | B34: 1 | C34: 1
A35: Облігації ДІУ (5 - річні) | B35: 3 | C35: 3
A36: Облігації ДІУ (7 - річні) | B36: 3 | C36: 3
A37: Облігації НАК "Нафтогаз України" (3 - річні) | B37: 4.8 | C37: 4.8
A38: Облігації Укравтодору (5 - річні) | B38: 4.15 | C38: 4.15
A39: 2. Заборгованість перед банківськими та іншими фінансовими установами | B39: =SUM(B$40:B$41) -> 3.133508998 | C39: 3.100689992
A40: ВАТ "Державний ощадний банк України" | B40: 3.021712318 | C40: 2.998100726
A41: ПАТ АБ "Укргазбанк" | B41: 0.1117966802 | C41: 0.1025892659
A42: 3. Заборгованість, не віднесена до інших категорій | B42: =SUM(B$43:B$43) -> 0.00095465 | C42: 0.00095465
A43: Інші кредитори | B43: 0.00095465 | C43: 0.00095465
A44: Зовнішній борг | B44: =B$45+B$68 -> 1240.031146 | C44: 1241.327498
A45: Державний борг | B45: =B$46+B$53+B$59+B$61+B$66 -> 980.1877545 | C45: 981.0500337
A46: 1. Заборгованість за позиками, одержаними від міжнародних фінансових організацій | B46: =SUM(B$47:B$52) -> 371.8465755 | C46: 373.209225
A47: Європейське Співтовариство | B47: 62.81395484 | C47: 63.70885235
A48: Європейський банк реконструкції та розвитку | B48: 16.0723087 | C48: 16.53241549
A49: Європейський Інвестиційний Банк | B49: 14.52237776 | C49: 14.72927509
A50: Міжнародний банк реконструкції та розвитку | B50: 137.4605065 | C50: 136.1181227
A51: Міжнародний Валютний Фонд | B51: 140.9098527 | C51: 142.0531629
A52: Фонд чистих технологій (МБРР) | B52: 0.06757499901 | C52: 0.06739650623
A53: 2. Заборгованість за позиками, одержаними від органів управління іноземних держав | B53: =SUM(B$54:B$58) -> 45.64750416 | C53: 46.15063435
A54: Канада | B54: 8.0323876 | C54: 8.246452
A55: Німеччина | B55: 5.983279353 | C55: 6.068521905
A56: Росія | B56: 16.47374066 | C56: 16.43022688
A57: США | B57: 0.2065714027 | C57: 0.2060257645
A58: Японія | B58: 14.95152515 | C58: 15.1994078
A59: 3. Заборгованість за позиками, одержаними від іноземних комерційних банків, інших іноземних фінансових установ | B59: =SUM(B$60:B$60) -> 0.001453225 | C59: 0.0014739288
A60: Chase Manhattan Bank Luxembourg S.A. | B60: 0.001453225 | C60: 0.0014739288
A61: 4. Заборгованість за випущеними цінними паперами на зовнішньому ринку | B61: =SUM(B$62:B$65) -> 517.8044819 | C61: 516.4367518
A62: ОЗДП 2013 року | B62: 81.572574 | C62: 81.357108
A63: ОЗДП 2014 року | B63: 27.190858 | C63: 27.119036
A64: ОЗДП 2015 року | B64: 381.8501919 | C64: 380.8415718
A65: ОЗДП 2016 року | B65: 27.190858 | C65: 27.119036
A66: 5. Заборгованість, не віднесена до інших категорій | B66: =SUM(B$67:B$67) -> 44.88773975 | C66: 45.25194859
A67: Міжнародний Валютний Фонд | B67: 44.88773975 | C67: 45.25194859
A68: Гарантований державою борг | B68: =B$69+B$75+B$77+B$79+B$86+B$87 -> 259.843392 | C68: 260.2774644
A69: 1. Заборгованість за позиками, одержаними від міжнародних фінансових організацій | B69: =SUM(B$70:B$74) -> 190.935067 | C69: 192.5097242
A70: Європейське співтоватиство з атомної енергії | B70: 0.2958517627 | C70: 0.2978783374
A71: Європейський банк реконструкції та розвитку | B71: 10.51454858 | C71: 10.69977657
A72: Європейський Інвестиційний Банк | B72: 0.99479114 | C72: 1.008963725
A73: Міжнародний банк реконструкції та розвитку | B73: 12.37301899 | C73: 12.39322211
A74: Міжнародний Валютний Фонд | B74: 166.7568566 | C74: 168.1098835
A75: 2. Заборгованість за позиками, одержаними від органів управління іноземних держав | B75: =SUM(B$76:B$76) -> 3.975759701 | C75: 3.304381766
A76: Канада | B76: 3.975759701 | C76: 3.304381766
A77: 2. Заборгованість перед банківськими та іншими фінансовими установами | B77: =SUM(B$78:B$78) -> 0 | C77: 0.0007999719
A78: ВАТ "Державний ощадний банк України" | B78: 0 | C78: 0.0007999719
A79: 3. Заборгованість за позиками, одержаними від іноземних комерційних банків, інших іноземних фінансових установ | B79: =SUM(B$80:B$85) -> 61.95552088 | C79: 61.46135897
A80: Deutsche Bank AG London | B80: 0.3881279224 | C80: 0.3936575011
A81: UniCredit Bank Austria AG | B81: 0.96636853 | C81: 0.980136184
A82: ВАТ "Газпромбанк" | B82: 13.595429 | C82: 13.559518
A83: Державний банк розвитку КНР | B83: 1.608611159 | C83: 1.60436217
A84: Експортно-імпортний банк Китаю | B84: 41.84925707 | C84: 41.38532889
A85: Експортно-імпортний банк Кореї | B85: 3.547727198 | C85: 3.538356222
A86: 4. Заборгованість за випущеними цінними паперами на зовнішньому ринку
A87: 5. Заборгованість, не віднесена до інших категорій | B87: =SUM(B$88:B$88) -> 2.977044347 | C87: 3.001199403
A88: Міжнародний Валютний Фонд | B88: 2.977044347 | C88: 3.001199403

Sheet MTK2_USD (hidden)
A2: Державний та гарантований державою борг України за поточний рік
C4: =VALUSD -> млрд. дол. США
B5: 2016-12-31 | C5: 2017-01-31
A6: Загальна сума державного та гарантованого державою боргу | B6: =B$7+B$44 -> 70.97095473 | C6: 71.20530263
A7: Внутрішній борг | B7: =B$8+B$31 -> 25.36624647 | C7: 25.43201268
A8: Державний борг | B8: =B$9+B$29 -> 24.66437545 | C8: 24.729493
A9: 1. Заборгованість за випущеними цінними паперами на внутрішньому ринку | B9: =SUM(B$10:B$28) -> 24.57196211 | C9: 24.63683492
A10: ОВДП (10 - річні) | B10: 2.752137612 | C10: 2.759426368
A11: ОВДП (11 - річні) | B11: 0.6392950528 | C11: 0.6409881605
A12: ОВДП (12 - місячні) | B12: 0.1278948241 | C12: 0.1274960511
A13: ОВДП (12 - річні) | B13: 1.048146403 | C13: 1.050922312
A14: ОВДП (13 - річні) | B14: 1.365077557 | C14: 1.368692825
A15: ОВДП (14 - річні) | B15: 1.884824672 | C15: 1.889816437
A16: ОВДП (15 - річні) | B16: 1.573684729 | C16: 1.577852472
A17: ОВДП (18 - місячні) | B17: 1.076022 | C17: 1.076022
A18: ОВДП (2 - річні) | B18: 2.366730742 | C18: 2.372229795
A19: ОВДП (3 - місячні) | B19: 0.00036777067 | C19: 0.00036874467
A20: ОВДП (3 - річні) | B20: 0.6789923657 | C20: 0.7157077781
A21: ОВДП (4 - річні) | B21: 0.5731903451 | C21: 0.5742846376
A22: ОВДП (5 - річні) | B22: 5.574287189 | C22: 5.56631909
A23: ОВДП (6 - місячні) | B23: 0.00793652779 | C23: 0.00036874467
A24: ОВДП (6 - річні) | B24: 0.886327309 | C24: 0.8886746564
A25: ОВДП (7 - річні) | B25: 1.645398281 | C25: 1.64975595
A26: ОВДП (8 - річні) | B26: 1.008287344 | C26: 1.01095769
A27: ОВДП (9 - місячні) | B27: 0.00722915769 | C27: 0.00722739555
A28: ОВДП (9 - річні) | B28: 1.356132234 | C28: 1.359723812
A29: 2. Заборгованість перед банківськими та іншими фінансовими установами | B29: =SUM(B$30:B$30) -> 0.09241333715 | C29: 0.09265808444
A30: Національний банк України | B30: 0.09241333715 | C30: 0.09265808444
A31: Гарантований державою борг | B31: =B$32+B$39+B$42 -> 0.7018710203 | C31: 0.7025196707
A32: 1. Заборгованість за випущеними цінними паперами на внутрішньому ринку | B32: =SUM(B$33:B$38) -> 0.5865946415 | C32: 0.5881481775
A33: Державні цінні папери | B33: 4.2661e-07 | C33: 4.2774e-07
A34: Облігації ДІУ (10 - річні) | B34: 0.03677706676 | C34: 0.03687446707
A35: Облігації ДІУ (5 - річні) | B35: 0.1103312003 | C35: 0.1106234012
A36: Облігації ДІУ (7 - річні) | B36: 0.1103312003 | C36: 0.1106234012
A37: Облігації НАК "Нафтогаз України" (3 - річні) | B37: 0.1765299205 | C37: 0.1769974419
A38: Облігації Укравтодору (5 - річні) | B38: 0.1526248271 | C38: 0.1530290384
A39: 2. Заборгованість перед банківськими та іншими фінансовими установами | B39: =SUM(B$40:B$41) -> 0.1152412696 | C39: 0.114336291
A40: ВАТ "Державний ощадний банк України" | B40: 0.1111297157 | C40: 0.1105533665
A41: ПАТ АБ "Укргазбанк" | B41: 0.00411155398 | C41: 0.0037829245
A42: 3. Заборгованість, не віднесена до інших категорій | B42: =SUM(B$43:B$43) -> 3.510923e-05 | C42: 3.520221e-05
A43: Інші кредитори | B43: 3.510923e-05 | C43: 3.520221e-05
A44: Зовнішній борг | B44: =B$45+B$68 -> 45.60470826 | C44: 45.77328995
A45: Державний борг | B45: =B$46+B$53+B$59+B$61+B$66 -> 36.04843049 | C45: 36.17569716
A46: 1. Заборгованість за позиками, одержаними від міжнародних фінансових організацій | B46: =SUM(B$47:B$52) -> 13.67542633 | C46: 13.76189128
A47: Європейське Співтовариство | B47: 2.310113011 | C47: 2.349229978
A48: Європейський банк реконструкції та розвитку | B48: 0.59109237 | C48: 0.6096240107
A49: Європейський Інвестиційний Банк | B49: 0.5340904563 | C49: 0.5431341693
A50: Міжнародний банк реконструкції та розвитку | B50: 5.055394225 | C50: 5.019283232
A51: Міжнародний Валютний Фонд | B51: 5.18225106 | C51: 5.238134679
A52: Фонд чистих технологій (МБРР) | B52: 0.00248521025 | C52: 0.00248521025
A53: 2. Заборгованість за позиками, одержаними від органів управління іноземних держав | B53: =SUM(B$54:B$58) -> 1.678781308 | C53: 1.701780047
A54: Канада | B54: 0.295407655 | C54: 0.3040835227
A55: Німеччина | B55: 0.2200474642 | C55: 0.2237735111
A56: Росія | B56: 0.60585586 | C56: 0.60585586
A57: США | B57: 0.00759709027 | C57: 0.00759709027
A58: Японія | B58: 0.5498732387 | C58: 0.5604700626
A59: 3. Заборгованість за позиками, одержаними від іноземних комерційних банків, інших іноземних фінансових установ | B59: =SUM(B$60:B$60) -> 5.344535e-05 | C59: 5.435034e-05
A60: Chase Manhattan Bank Luxembourg S.A. | B60: 5.344535e-05 | C60: 5.435034e-05
A61: 4. Заборгованість за випущеними цінними паперами на зовнішньому ринку | B61: =SUM(B$62:B$65) -> 19.04333 | C61: 19.04333
A62: ОЗДП 2013 року | B62: 3 | C62: 3
A63: ОЗДП 2014 року | B63: 1 | C63: 1
A64: ОЗДП 2015 року | B64: 14.04333 | C64: 14.04333
A65: ОЗДП 2016 року | B65: 1 | C65: 1
A66: 5. Заборгованість, не віднесена до інших категорій | B66: =SUM(B$67:B$67) -> 1.650839402 | C66: 1.668641488
A67: Міжнародний Валютний Фонд | B67: 1.650839402 | C67: 1.668641488
A68: Гарантований державою борг | B68: =B$69+B$75+B$77+B$79+B$86+B$87 -> 9.556277774 | C68: 9.597592789
A69: 1. Заборгованість за позиками, одержаними від міжнародних фінансових організацій | B69: =SUM(B$70:B$74) -> 7.022031708 | C69: 7.098693488
A70: Європейське співтоватиство з атомної енергії | B70: 0.01088056003 | C70: 0.01098410494
A71: Європейський банк реконструкції та розвитку | B71: 0.3866942552 | C71: 0.3945485589
A72: Європейський Інвестиційний Банк | B72: 0.03658550017 | C72: 0.03720499965
A73: Міжнародний банк реконструкції та розвитку | B73: 0.4550433454 | C73: 0.4569934608
A74: Міжнародний Валютний Фонд | B74: 6.132828047 | C74: 6.198962364
A75: 2. Заборгованість за позиками, одержаними від органів управління іноземних держав | B75: =SUM(B$76:B$76) -> 0.14621678 | C75: 0.1218473166
A76: Канада | B76: 0.14621678 | C76: 0.1218473166
A77: 2. Заборгованість перед банківськими та іншими фінансовими установами | B77: =SUM(B$78:B$78) -> 0 | C77: 2.949854e-05
A78: ВАТ "Державний ощадний банк України" | B78: 0 | C78: 2.949854e-05
A79: 3. Заборгованість за позиками, одержаними від іноземних комерційних банків, інших іноземних фінансових установ | B79: =SUM(B$80:B$85) -> 2.278542328 | C79: 2.266354858
A80: Deutsche Bank AG London | B80: 0.01427420651 | C80: 0.01451591056
A81: UniCredit Bank Austria AG | B81: 0.03554019995 | C81: 0.03614199944
A82: ВАТ "Газпромбанк" | B82: 0.5 | C82: 0.5
A83: Державний банк розвитку КНР | B83: 0.05916 | C83: 0.05916
A84: Експортно-імпортний банк Китаю | B84: 1.539092921 | C84: 1.526061947
A85: Експортно-імпортний банк Кореї | B85: 0.130475 | C85: 0.130475
A86: 4. Заборгованість за випущеними цінними паперами на зовнішньому ринку
A87: 5. Заборгованість, не віднесена до інших категорій | B87: =SUM(B$88:B$88) -> 0.1094869587 | C87: 0.1106676285
A88: Міжнародний Валютний Фонд | B88: 0.1094869587 | C88: 0.1106676285

Sheet DKT2
A2: ="Державний та гарантований державою борг України за станом на " & TEXT(DREPORTDATE,"dd.MM.yyyy") -> Державний та гарантований державою борг України за станом на 31.01.2017
A3: (за ознакою умовності)
B4: офіційний курс НБУ 27,119036 грн./дол.США
D5: =VALVAL -> млрд. одиниць
B6: дол.США | C6: грн. | D6: %
A7: Загальна сума державного та гарантованого державою боргу | B7: =B$8+B$55 -> 71.20530263 | C7: 1931.019165 | D7: 1.000002
A8: Державний борг | B8: =B$9+B$32 -> 60.90519017 | C8: 1651.690045 | D8: 0.855347
A9: Внутрішній борг | B9: =B$10+B$30 -> 24.729493 | C9: 670.6400111 | D9: 0.347298
A10: 1. Заборгованість за випущеними цінними паперами на внутрішньому ринку | B10: =SUM(B$11:B$29) -> 24.63683492 | C10: 668.1272131 | D10: 0.345997
A11: ОВДП (10 - річні) | B11: 2.759426368 | C11: 74.832983 | D11: 0.038753
A12: ОВДП (11 - річні) | B12: 0.6409881605 | C12: 17.382981 | D12: 0.009002
A13: ОВДП (12 - місячні) | B13: 0.1274960511 | C13: 3.45757 | D13: 0.001791
A14: ОВДП (12 - річні) | B14: 1.050922312 | C14: 28.5 | D14: 0.014759
A15: ОВДП (13 - річні) | B15: 1.368692825 | C15: 37.11763 | D15: 0.019222
A16: ОВДП (14 - річні) | B16: 1.889816437 | C16: 51.25 | D16: 0.02654
A17: ОВДП (15 - річні) | B17: 1.577852472 | C17: 42.789838 | D17: 0.022159
A18: ОВДП (18 - місячні) | B18: 1.076022 | C18: 29.18067935 | D18: 0.015112
A19: ОВДП (2 - річні) | B19: 2.372229795 | C19: 64.33258522 | D19: 0.033315
A20: ОВДП (3 - місячні) | B20: 0.00036874467 | C20: 0.01 | D20: 5e-06
A21: ОВДП (3 - річні) | B21: 0.7157077781 | C21: 19.409305 | D21: 0.010051
A22: ОВДП (4 - річні) | B22: 0.5742846376 | C22: 15.57404576 | D22: 0.008065
A23: ОВДП (5 - річні) | B23: 5.56631909 | C23: 150.9532078 | D23: 0.078173
A24: ОВДП (6 - місячні) | B24: 0.00036874467 | C24: 0.01 | D24: 5e-06
A25: ОВДП (6 - річні) | B25: 0.8886746564 | C25: 24.1 | D25: 0.01248
A26: ОВДП (7 - річні) | B26: 1.64975595 | C26: 44.739791 | D26: 0.023169
A27: ОВДП (8 - річні) | B27: 1.01095769 | C27: 27.416198 | D27: 0.014198
A28: ОВДП (9 - місячні) | B28: 0.00722739555 | C28: 0.196 | D28: 0.000102
A29: ОВДП (9 - річні) | B29: 1.359723812 | C29: 36.874399 | D29: 0.019096
A30: 2. Заборгованість перед банківськими та іншими фінансовими установами | B30: =SUM(B$31:B$31) -> 0.09265808444 | C30: 2.512797928 | D30: 0.001301
A31: Національний банк України | B31: 0.09265808444 | C31: 2.512797928 | D31: 0.001301
A32: Зовнішній борг | B32: =B$33+B$40+B$46+B$48+B$53 -> 36.17569716 | C32: 981.0500337 | D32: 0.508049
A33: 1. Заборгованість за позиками, одержаними від міжнародних фінансових організацій | B33: =SUM(B$34:B$39) -> 13.76189128 | C33: 373.209225 | D33: 0.19327
A34: Європейське Співтовариство | B34: 2.349229978 | C34: 63.70885235 | D34: 0.032992
A35: Європейський банк реконструкції та розвитку | B35: 0.6096240107 | C35: 16.53241549 | D35: 0.008561
A36: Європейський Інвестиційний Банк | B36: 0.5431341693 | C36: 14.72927509 | D36: 0.007628
A37: Міжнародний банк реконструкції та розвитку | B37: 5.019283232 | C37: 136.1181227 | D37: 0.07049
A38: Міжнародний Валютний Фонд | B38: 5.238134679 | C38: 142.0531629 | D38: 0.073564
A39: Фонд чистих технологій (МБРР) | B39: 0.00248521025 | C39: 0.06739650623 | D39: 3.5e-05
A40: 2. Заборгованість за позиками, одержаними від органів управління іноземних держав | B40: =SUM(B$41:B$45) -> 1.701780047 | C40: 46.15063435 | D40: 0.023901
A41: Канада | B41: 0.3040835227 | C41: 8.246452 | D41: 0.004271
A42: Німеччина | B42: 0.2237735111 | C42: 6.068521905 | D42: 0.003143
A43: Росія | B43: 0.60585586 | C43: 16.43022688 | D43: 0.008509
A44: США | B44: 0.00759709027 | C44: 0.2060257645 | D44: 0.000107
A45: Японія | B45: 0.5604700626 | C45: 15.1994078 | D45: 0.007871
A46: 3. Заборгованість за позиками, одержаними від іноземних комерційних банків, інших іноземних фінансових установ | B46: =SUM(B$47:B$47) -> 5.435034e-05 | C46: 0.0014739288 | D46: 1e-06
A47: Chase Manhattan Bank Luxembourg S.A. | B47: 5.435034e-05 | C47: 0.0014739288 | D47: 1e-06
A48: 4. Заборгованість за випущеними цінними паперами на зовнішньому ринку | B48: =SUM(B$49:B$52) -> 19.04333 | C48: 516.4367518 | D48: 0.267443
A49: ОЗДП 2013 року | B49: 3 | C49: 81.357108 | D49: 0.042132
A50: ОЗДП 2014 року | B50: 1 | C50: 27.119036 | D50: 0.014044
A51: ОЗДП 2015 року | B51: 14.04333 | C51: 380.8415718 | D51: 0.197223
A52: ОЗДП 2016 року | B52: 1 | C52: 27.119036 | D52: 0.014044
A53: 5. Заборгованість, не віднесена до інших категорій | B53: =SUM(B$54:B$54) -> 1.668641488 | C53: 45.25194859 | D53: 0.023434
A54: Міжнародний Валютний Фонд | B54: 1.668641488 | C54: 45.25194859 | D54: 0.023434
A55: Гарантований державою борг | B55: =B$56+B$69 -> 10.30011246 | C55: 279.3291206 | D55: 0.144655
A56: Внутрішній борг | B56: =B$57+B$64+B$67 -> 0.7025196707 | C56: 19.05165624 | D56: 0.009867
A57: 1. Заборгованість за випущеними цінними паперами на внутрішньому ринку | B57: =SUM(B$58:B$63) -> 0.5881481775 | C57: 15.9500116 | D57: 0.008261
A58: Державні цінні папери | B58: 4.2774e-07 | C58: 1.16e-05 | D58: 0
A59: Облігації ДІУ (10 - річні) | B59: 0.03687446707 | C59: 1 | D59: 0.000518
A60: Облігації ДІУ (5 - річні) | B60: 0.1106234012 | C60: 3 | D60: 0.001554
A61: Облігації ДІУ (7 - річні) | B61: 0.1106234012 | C61: 3 | D61: 0.001554
A62: Облігації НАК "Нафтогаз України" (3 - річні) | B62: 0.1769974419 | C62: 4.8 | D62: 0.002486
A63: Облігації Укравтодору (5 - річні) | B63: 0.1530290384 | C63: 4.15 | D63: 0.002149
A64: 2. Заборгованість перед банківськими та іншими фінансовими установами | B64: =SUM(B$65:B$66) -> 0.114336291 | C64: 3.100689992 | D64: 0.001606
A65: ВАТ "Державний ощадний банк України" | B65: 0.1105533665 | C65: 2.998100726 | D65: 0.001553
A66: ПАТ АБ "Укргазбанк" | B66: 0.0037829245 | C66: 0.1025892659 | D66: 5.3e-05
A67: 3. Заборгованість, не віднесена до інших категорій | B67: =SUM(B$68:B$68) -> 3.520221e-05 | C67: 0.00095465 | D67: 0
A68: Інші кредитори | B68: 3.520221e-05 | C68: 0.00095465 | D68: 0
A69: Зовнішній борг | B69: =B$70+B$76+B$78+B$80+B$87+B$88 -> 9.597592789 | C69: 260.2774644 | D69: 0.134788
A70: 1. Заборгованість за позиками, одержаними від міжнародних фінансових організацій | B70: =SUM(B$71:B$75) -> 7.098693488 | C70: 192.5097242 | D70: 0.099694
A71: Європейське співтоватиство з атомної енергії | B71: 0.01098410494 | C71: 0.2978783374 | D71: 0.000154
A72: Європейський банк реконструкції та розвитку | B72: 0.3945485589 | C72: 10.69977657 | D72: 0.005541
A73: Європейський Інвестиційний Банк | B73: 0.03720499965 | C73: 1.008963725 | D73: 0.000523
A74: Міжнародний банк реконструкції та розвитку | B74: 0.4569934608 | C74: 12.39322211 | D74: 0.006418
A75: Міжнародний Валютний Фонд | B75: 6.198962364 | C75: 168.1098835 | D75: 0.087058
A76: 2. Заборгованість за позиками, одержаними від органів управління іноземних держав | B76: =SUM(B$77:B$77) -> 0.1218473166 | C76: 3.304381766 | D76: 0.001711
A77: Канада | B77: 0.1218473166 | C77: 3.304381766 | D77: 0.001711
A78: 2. Заборгованість перед банківськими та іншими фінансовими установами | B78: =SUM(B$79:B$79) -> 2.949854e-05 | C78: 0.0007999719 | D78: 0
A79: ВАТ "Державний ощадний банк України" | B79: 2.949854e-05 | C79: 0.0007999719 | D79: 0
A80: 3. Заборгованість за позиками, одержаними від іноземних комерційних банків, інших іноземних фінансових установ | B80: =SUM(B$81:B$86) -> 2.266354858 | C80: 61.46135897 | D80: 0.031829
A81: Deutsche Bank AG London | B81: 0.01451591056 | C81: 0.3936575011 | D81: 0.000204
A82: UniCredit Bank Austria AG | B82: 0.03614199944 | C82: 0.980136184 | D82: 0.000508
A83: ВАТ "Газпромбанк" | B83: 0.5 | C83: 13.559518 | D83: 0.007022
A84: Державний банк розвитку КНР | B84: 0.05916 | C84: 1.60436217 | D84: 0.000831
A85: Експортно-імпортний банк Китаю | B85: 1.526061947 | C85: 41.38532889 | D85: 0.021432
A86: Експортно-імпортний банк Кореї | B86: 0.130475 | C86: 3.538356222 | D86: 0.001832
A87: 4. Заборгованість за випущеними цінними паперами на зовнішньому ринку
A88: 5. Заборгованість, не віднесена до інших категорій | B88: =SUM(B$89:B$89) -> 0.1106676285 | C88: 3.001199403 | D88: 0.001554
A89: Міжнародний Валютний Фонд | B89: 0.1106676285 | C89: 3.001199403 | D89: 0.001554

Sheet MKT2_UAH
A2: Державний та гарантований державою борг України за поточний рік
C4: =VALUAH -> млрд. грн
B5: 2016-12-31 | C5: 2017-01-31
A6: Загальна сума державного та гарантованого державою боргу | B6: =B$7+B$54 -> 1929.761152 | C6: 1931.019165
A7: Державний борг | B7: =B$8+B$31 -> 1650.833285 | C7: 1651.690045
A8: Внутрішній борг | B8: =B$9+B$29 -> 670.6455305 | C8: 670.6400111
A9: 1. Заборгованість за випущеними цінними паперами на внутрішньому ринку | B9: =SUM(B$10:B$28) -> 668.1327326 | C9: 668.1272131
A10: ОВДП (10 - річні) | B10: 74.832983 | C10: 74.832983
A11: ОВДП (11 - річні) | B11: 17.382981 | C11: 17.382981
A12: ОВДП (12 - місячні) | B12: 3.47757 | C12: 3.45757
A13: ОВДП (12 - річні) | B13: 28.5 | C13: 28.5
A14: ОВДП (13 - річні) | B14: 37.11763 | C14: 37.11763
A15: ОВДП (14 - річні) | B15: 51.25 | C15: 51.25
A16: ОВДП (15 - річні) | B16: 42.789838 | C16: 42.789838
A17: ОВДП (18 - місячні) | B17: 29.25796141 | C17: 29.18067935
A18: ОВДП (2 - річні) | B18: 64.35343953 | C18: 64.33258522
A19: ОВДП (3 - місячні) | B19: 0.01 | C19: 0.01
A20: ОВДП (3 - річні) | B20: 18.462385 | C20: 19.409305
A21: ОВДП (4 - річні) | B21: 15.58553728 | C21: 15.57404576
A22: ОВДП (5 - річні) | B22: 151.5696514 | C22: 150.9532078
A23: ОВДП (6 - місячні) | B23: 0.215801 | C23: 0.01
A24: ОВДП (6 - річні) | B24: 24.1 | C24: 24.1
A25: ОВДП (7 - річні) | B25: 44.739791 | C25: 44.739791
A26: ОВДП (8 - річні) | B26: 27.416198 | C26: 27.416198
A27: ОВДП (9 - місячні) | B27: 0.196567 | C27: 0.196
A28: ОВДП (9 - річні) | B28: 36.874399 | C28: 36.874399
A29: 2. Заборгованість перед банківськими та іншими фінансовими установами | B29: =SUM(B$30:B$30) -> 2.512797928 | C29: 2.512797928
A30: Національний банк України | B30: 2.512797928 | C30: 2.512797928
A31: Зовнішній борг | B31: =B$32+B$39+B$45+B$47+B$52 -> 980.1877545 | C31: 981.0500337
A32: 1. Заборгованість за позиками, одержаними від міжнародних фінансових організацій | B32: =SUM(B$33:B$38) -> 371.8465755 | C32: 373.209225
A33: Європейське Співтовариство | B33: 62.81395484 | C33: 63.70885235
A34: Європейський банк реконструкції та розвитку | B34: 16.0723087 | C34: 16.53241549
A35: Європейський Інвестиційний Банк | B35: 14.52237776 | C35: 14.72927509
A36: Міжнародний банк реконструкції та розвитку | B36: 137.4605065 | C36: 136.1181227
A37: Міжнародний Валютний Фонд | B37: 140.9098527 | C37: 142.0531629
A38: Фонд чистих технологій (МБРР) | B38: 0.06757499901 | C38: 0.06739650623
A39: 2. Заборгованість за позиками, одержаними від органів управління іноземних держав | B39: =SUM(B$40:B$44) -> 45.64750416 | C39: 46.15063435
A40: Канада | B40: 8.0323876 | C40: 8.246452
A41: Німеччина | B41: 5.983279353 | C41: 6.068521905
A42: Росія | B42: 16.47374066 | C42: 16.43022688
A43: США | B43: 0.2065714027 | C43: 0.2060257645
A44: Японія | B44: 14.95152515 | C44: 15.1994078
A45: 3. Заборгованість за позиками, одержаними від іноземних комерційних банків, інших іноземних фінансових установ | B45: =SUM(B$46:B$46) -> 0.001453225 | C45: 0.0014739288
A46: Chase Manhattan Bank Luxembourg S.A. | B46: 0.001453225 | C46: 0.0014739288
A47: 4. Заборгованість за випущеними цінними паперами на зовнішньому ринку | B47: =SUM(B$48:B$51) -> 517.8044819 | C47: 516.4367518
A48: ОЗДП 2013 року | B48: 81.572574 | C48: 81.357108
A49: ОЗДП 2014 року | B49: 27.190858 | C49: 27.119036
A50: ОЗДП 2015 року | B50: 381.8501919 | C50: 380.8415718
A51: ОЗДП 2016 року | B51: 27.190858 | C51: 27.119036
A52: 5. Заборгованість, не віднесена до інших категорій | B52: =SUM(B$53:B$53) -> 44.88773975 | C52: 45.25194859
A53: Міжнародний Валютний Фонд | B53: 44.88773975 | C53: 45.25194859
A54: Гарантований державою борг | B54: =B$55+B$68 -> 278.9278672 | C54: 279.3291206
A55: Внутрішній борг | B55: =B$56+B$63+B$66 -> 19.08447525 | C55: 19.05165624
A56: 1. Заборгованість за випущеними цінними паперами на внутрішньому ринку | B56: =SUM(B$57:B$62) -> 15.9500116 | C56: 15.9500116
A57: Державні цінні папери | B57: 1.16e-05 | C57: 1.16e-05
A58: Облігації ДІУ (10 - річні) | B58: 1 | C58: 1
A59: Облігації ДІУ (5 - річні) | B59: 3 | C59: 3
A60: Облігації ДІУ (7 - річні) | B60: 3 | C60: 3
A61: Облігації НАК "Нафтогаз України" (3 - річні) | B61: 4.8 | C61: 4.8
A62: Облігації Укравтодору (5 - річні) | B62: 4.15 | C62: 4.15
A63: 2. Заборгованість перед банківськими та іншими фінансовими установами | B63: =SUM(B$64:B$65) -> 3.133508998 | C63: 3.100689992
A64: ВАТ "Державний ощадний банк України" | B64: 3.021712318 | C64: 2.998100726
A65: ПАТ АБ "Укргазбанк" | B65: 0.1117966802 | C65: 0.1025892659
A66: 3. Заборгованість, не віднесена до інших категорій | B66: =SUM(B$67:B$67) -> 0.00095465 | C66: 0.00095465
A67: Інші кредитори | B67: 0.00095465 | C67: 0.00095465
A68: Зовнішній борг | B68: =B$69+B$75+B$77+B$79+B$86+B$87 -> 259.843392 | C68: 260.2774644
A69: 1. Заборгованість за позиками, одержаними від міжнародних фінансових організацій | B69: =SUM(B$70:B$74) -> 190.935067 | C69: 192.5097242
A70: Європейське співтоватиство з атомної енергії | B70: 0.2958517627 | C70: 0.2978783374
A71: Європейський банк реконструкції та розвитку | B71: 10.51454858 | C71: 10.69977657
A72: Європейський Інвестиційний Банк | B72: 0.99479114 | C72: 1.008963725
A73: Міжнародний банк реконструкції та розвитку | B73: 12.37301899 | C73: 12.39322211
A74: Міжнародний Валютний Фонд | B74: 166.7568566 | C74: 168.1098835
A75: 2. Заборгованість за позиками, одержаними від органів управління іноземних держав | B75: =SUM(B$76:B$76) -> 3.975759701 | C75: 3.304381766
A76: Канада | B76: 3.975759701 | C76: 3.304381766
A77: 2. Заборгованість перед банківськими та іншими фінансовими установами | B77: =SUM(B$78:B$78) -> 0 | C77: 0.0007999719
A78: ВАТ "Державний ощадний банк України" | B78: 0 | C78: 0.0007999719
A79: 3. Заборгованість за позиками, одержаними від іноземних комерційних банків, інших іноземних фінансових установ | B79: =SUM(B$80:B$85) -> 61.95552088 | C79: 61.46135897
A80: Deutsche Bank AG London | B80: 0.3881279224 | C80: 0.3936575011
A81: UniCredit Bank Austria AG | B81: 0.96636853 | C81: 0.980136184
A82: ВАТ "Газпромбанк" | B82: 13.595429 | C82: 13.559518
A83: Державний банк розвитку КНР | B83: 1.608611159 | C83: 1.60436217
A84: Експортно-імпортний банк Китаю | B84: 41.84925707 | C84: 41.38532889
A85: Експортно-імпортний банк Кореї | B85: 3.547727198 | C85: 3.538356222
A86: 4. Заборгованість за випущеними цінними паперами на зовнішньому ринку
A87: 5. Заборгованість, не віднесена до інших категорій | B87: =SUM(B$88:B$88) -> 2.977044347 | C87: 3.001199403
A88: Міжнародний Валютний Фонд | B88: 2.977044347 | C88: 3.001199403

Sheet MKT2_USD
A2: Державний та гарантований державою борг України за поточний рік
C4: =VALUSD -> млрд. дол. США
B5: 2016-12-31 | C5: 2017-01-31
A6: Загальна сума державного та гарантованого державою боргу | B6: =B$7+B$54 -> 70.97095473 | C6: 71.20530263
A7: Державний борг | B7: =B$8+B$31 -> 60.71280594 | C7: 60.90519017
A8: Внутрішній борг | B8: =B$9+B$29 -> 24.66437545 | C8: 24.729493
A9: 1. Заборгованість за випущеними цінними паперами на внутрішньому ринку | B9: =SUM(B$10:B$28) -> 24.57196211 | C9: 24.63683492
A10: ОВДП (10 - річні) | B10: 2.752137612 | C10: 2.759426368
A11: ОВДП (11 - річні) | B11: 0.6392950528 | C11: 0.6409881605
A12: ОВДП (12 - місячні) | B12: 0.1278948241 | C12: 0.1274960511
A13: ОВДП (12 - річні) | B13: 1.048146403 | C13: 1.050922312
A14: ОВДП (13 - річні) | B14: 1.365077557 | C14: 1.368692825
A15: ОВДП (14 - річні) | B15: 1.884824672 | C15: 1.889816437
A16: ОВДП (15 - річні) | B16: 1.573684729 | C16: 1.577852472
A17: ОВДП (18 - місячні) | B17: 1.076022 | C17: 1.076022
A18: ОВДП (2 - річні) | B18: 2.366730742 | C18: 2.372229795
A19: ОВДП (3 - місячні) | B19: 0.00036777067 | C19: 0.00036874467
A20: ОВДП (3 - річні) | B20: 0.6789923657 | C20: 0.7157077781
A21: ОВДП (4 - річні) | B21: 0.5731903451 | C21: 0.5742846376
A22: ОВДП (5 - річні) | B22: 5.574287189 | C22: 5.56631909
A23: ОВДП (6 - місячні) | B23: 0.00793652779 | C23: 0.00036874467
A24: ОВДП (6 - річні) | B24: 0.886327309 | C24: 0.8886746564
A25: ОВДП (7 - річні) | B25: 1.645398281 | C25: 1.64975595
A26: ОВДП (8 - річні) | B26: 1.008287344 | C26: 1.01095769
A27: ОВДП (9 - місячні) | B27: 0.00722915769 | C27: 0.00722739555
A28: ОВДП (9 - річні) | B28: 1.356132234 | C28: 1.359723812
A29: 2. Заборгованість перед банківськими та іншими фінансовими установами | B29: =SUM(B$30:B$30) -> 0.09241333715 | C29: 0.09265808444
A30: Національний банк України | B30: 0.09241333715 | C30: 0.09265808444
A31: Зовнішній борг | B31: =B$32+B$39+B$45+B$47+B$52 -> 36.04843049 | C31: 36.17569716
A32: 1. Заборгованість за позиками, одержаними від міжнародних фінансових організацій | B32: =SUM(B$33:B$38) -> 13.67542633 | C32: 13.76189128
A33: Європейське Співтовариство | B33: 2.310113011 | C33: 2.349229978
A34: Європейський банк реконструкції та розвитку | B34: 0.59109237 | C34: 0.6096240107
A35: Європейський Інвестиційний Банк | B35: 0.5340904563 | C35: 0.5431341693
A36: Міжнародний банк реконструкції та розвитку | B36: 5.055394225 | C36: 5.019283232
A37: Міжнародний Валютний Фонд | B37: 5.18225106 | C37: 5.238134679
A38: Фонд чистих технологій (МБРР) | B38: 0.00248521025 | C38: 0.00248521025
A39: 2. Заборгованість за позиками, одержаними від органів управління іноземних держав | B39: =SUM(B$40:B$44) -> 1.678781308 | C39: 1.701780047
A40: Канада | B40: 0.295407655 | C40: 0.3040835227
A41: Німеччина | B41: 0.2200474642 | C41: 0.2237735111
A42: Росія | B42: 0.60585586 | C42: 0.60585586
A43: США | B43: 0.00759709027 | C43: 0.00759709027
A44: Японія | B44: 0.5498732387 | C44: 0.5604700626
A45: 3. Заборгованість за позиками, одержаними від іноземних комерційних банків, інших іноземних фінансових установ | B45: =SUM(B$46:B$46) -> 5.344535e-05 | C45: 5.435034e-05
A46: Chase Manhattan Bank Luxembourg S.A. | B46: 5.344535e-05 | C46: 5.435034e-05
A47: 4. Заборгованість за випущеними цінними паперами на зовнішньому ринку | B47: =SUM(B$48:B$51) -> 19.04333 | C47: 19.04333
A48: ОЗДП 2013 року | B48: 3 | C48: 3
A49: ОЗДП 2014 року | B49: 1 | C49: 1
A50: ОЗДП 2015 року | B50: 14.04333 | C50: 14.04333
A51: ОЗДП 2016 року | B51: 1 | C51: 1
A52: 5. Заборгованість, не віднесена до інших категорій | B52: =SUM(B$53:B$53) -> 1.650839402 | C52: 1.668641488
A53: Міжнародний Валютний Фонд | B53: 1.650839402 | C53: 1.668641488
A54: Гарантований державою борг | B54: =B$55+B$68 -> 10.25814879 | C54: 10.30011246
A55: Внутрішній борг | B55: =B$56+B$63+B$66 -> 0.7018710203 | C55: 0.7025196707
A56: 1. Заборгованість за випущеними цінними паперами на внутрішньому ринку | B56: =SUM(B$57:B$62) -> 0.5865946415 | C56: 0.5881481775
A57: Державні цінні папери | B57: 4.2661e-07 | C57: 4.2774e-07
A58: Облігації ДІУ (10 - річні) | B58: 0.03677706676 | C58: 0.03687446707
A59: Облігації ДІУ (5 - річні) | B59: 0.1103312003 | C59: 0.1106234012
A60: Облігації ДІУ (7 - річні) | B60: 0.1103312003 | C60: 0.1106234012
A61: Облігації НАК "Нафтогаз України" (3 - річні) | B61: 0.1765299205 | C61: 0.1769974419
A62: Облігації Укравтодору (5 - річні) | B62: 0.1526248271 | C62: 0.1530290384
A63: 2. Заборгованість перед банківськими та іншими фінансовими установами | B63: =SUM(B$64:B$65) -> 0.1152412696 | C63: 0.114336291
A64: ВАТ "Державний ощадний банк України" | B64: 0.1111297157 | C64: 0.1105533665
A65: ПАТ АБ "Укргазбанк" | B65: 0.00411155398 | C65: 0.0037829245
A66: 3. Заборгованість, не віднесена до інших категорій | B66: =SUM(B$67:B$67) -> 3.510923e-05 | C66: 3.520221e-05
A67: Інші кредитори | B67: 3.510923e-05 | C67: 3.520221e-05
A68: Зовнішній борг | B68: =B$69+B$75+B$77+B$79+B$86+B$87 -> 9.556277774 | C68: 9.597592789
A69: 1. Заборгованість за позиками, одержаними від міжнародних фінансових організацій | B69: =SUM(B$70:B$74) -> 7.022031708 | C69: 7.098693488
A70: Європейське співтоватиство з атомної енергії | B70: 0.01088056003 | C70: 0.01098410494
A71: Європейський банк реконструкції та розвитку | B71: 0.3866942552 | C71: 0.3945485589
A72: Європейський Інвестиційний Банк | B72: 0.03658550017 | C72: 0.03720499965
A73: Міжнародний банк реконструкції та розвитку | B73: 0.4550433454 | C73: 0.4569934608
A74: Міжнародний Валютний Фонд | B74: 6.132828047 | C74: 6.198962364
A75: 2. Заборгованість за позиками, одержаними від органів управління іноземних держав | B75: =SUM(B$76:B$76) -> 0.14621678 | C75: 0.1218473166
A76: Канада | B76: 0.14621678 | C76: 0.1218473166
A77: 2. Заборгованість перед банківськими та іншими фінансовими установами | B77: =SUM(B$78:B$78) -> 0 | C77: 2.949854e-05
A78: ВАТ "Державний ощадний банк України" | B78: 0 | C78: 2.949854e-05
A79: 3. Заборгованість за позиками, одержаними від іноземних комерційних банків, інших іноземних фінансових установ | B79: =SUM(B$80:B$85) -> 2.278542328 | C79: 2.266354858
A80: Deutsche Bank AG London | B80: 0.01427420651 | C80: 0.01451591056
A81: UniCredit Bank Austria AG | B81: 0.03554019995 | C81: 0.03614199944
A82: ВАТ "Газпромбанк" | B82: 0.5 | C82: 0.5
A83: Державний банк розвитку КНР | B83: 0.05916 | C83: 0.05916
A84: Експортно-імпортний банк Китаю | B84: 1.539092921 | C84: 1.526061947
A85: Експортно-імпортний банк Кореї | B85: 0.130475 | C85: 0.130475
A86: 4. Заборгованість за випущеними цінними паперами на зовнішньому ринку
A87: 5. Заборгованість, не віднесена до інших категорій | B87: =SUM(B$88:B$88) -> 0.1094869587 | C87: 0.1106676285
A88: Міжнародний Валютний Фонд | B88: 0.1094869587 | C88: 0.1106676285

Sheet MT_ALL (hidden)
A2: Державний та гарантований державою борг України за поточний рік
A4: =$A$2 & " (" &C4 & ")" -> Державний та гарантований державою борг України за поточний рік (млрд. грн) | C4: =VALUAH -> млрд. грн
B5: 2016-12-31 | C5: 2017-01-31
A6: Загальна сума державного та гарантованого державою боргу | B6: =SUM(B7:B8) -> 1929.761152 | C6: 1931.019165
A7: Внутрішній борг | B7: 689.7300058 | C7: 689.6916673
A8: Зовнішній борг | B8: 1240.031146 | C8: 1241.327498
A10: =$A$2 & " (" &C10 & ")" -> Державний та гарантований державою борг України за поточний рік (млрд. дол. США) | C10: =VALUSD -> млрд. дол. США
B11: 2016-12-31 | C11: 2017-01-31
A12: Загальна сума державного та гарантованого державою боргу | B12: =SUM(B13:B14) -> 70.97095473 | C12: 71.20530263
A13: Внутрішній борг | B13: 25.36624647 | C13: 25.43201268
A14: Зовнішній борг | B14: 45.60470826 | C14: 45.77328995
C16: %%
B17: 2016-12-31 | C17: 2017-01-31
A18: Загальна сума державного та гарантованого державою боргу | B18: =SUM(B19:B20) -> 1 | C18: 1
A19: Внутрішній борг | B19: 0.357417 | C19: 0.357165
A20: Зовнішній борг | B20: 0.642583 | C20: 0.642835

Sheet MTM_ALL (hidden)
A2: Державний та гарантований державою борг України за поточний рік
C4: млрд. грн.
B5: =MT_ALL!B5 -> 2016-12-31 | C5: =MT_ALL!C5 -> 2017-01-31
A6: =MT_ALL!A6 -> Загальна сума державного та гарантованого державою боргу | B6: =SUM(B7:B8) -> 1929.761152 | C6: 1931.019165
A7: =MT_ALL!A7 -> Внутрішній борг | B7: =MT_ALL!B7/DMLMLR -> 689.7300058 | C7: =MT_ALL!C7/DMLMLR -> 689.6916673
A8: =MT_ALL!A8 -> Зовнішній борг | B8: =MT_ALL!B8/DMLMLR -> 1240.031146 | C8: =MT_ALL!C8/DMLMLR -> 1241.327498
C10: млрд. дол.США
B11: =MT_ALL!B11 -> 2016-12-31 | C11: =MT_ALL!C11 -> 2017-01-31
A12: =MT_ALL!A12 -> Загальна сума державного та гарантованого державою боргу | B12: =SUM(B13:B14) -> 70.97095473 | C12: 71.20530263
A13: =MT_ALL!A13 -> Внутрішній борг | B13: =MT_ALL!B13/DMLMLR -> 25.36624647 | C13: =MT_ALL!C13/DMLMLR -> 25.43201268
A14: =MT_ALL!A14 -> Зовнішній борг | B14: =MT_ALL!B14/DMLMLR -> 45.60470826 | C14: =MT_ALL!C14/DMLMLR -> 45.77328995
C16: %%
B17: =MT_ALL!B17 -> 2016-12-31 | C17: =MT_ALL!C17 -> 2017-01-31
A18: =MT_ALL!A18 -> Загальна сума державного та гарантованого державою боргу | B18: =SUM(B19:B20) -> 1 | C18: 1
A19: =MT_ALL!A19 -> Внутрішній борг | B19: =MT_ALL!B19 -> 0.357417 | C19: =MT_ALL!C19 -> 0.357165
A20: =MT_ALL!A20 -> Зовнішній борг | B20: =MT_ALL!B20 -> 0.642583 | C20: =MT_ALL!C20 -> 0.642835

Sheet MK_ALL (hidden)
A2: Державний та гарантований державою борг України за поточний рік
A4: =$A$2 & " (" &C4 & ")" -> Державний та гарантований державою борг України за поточний рік (млрд. грн) | C4: =VALUAH -> млрд. грн
B5: 2016-12-31 | C5: 2017-01-31
A6: Загальна сума державного та гарантованого державою боргу | B6: =SUM(B7:B8) -> 1929.761152 | C6: 1931.019165
A7: Державний борг | B7: 1650.833285 | C7: 1651.690045
A8: Гарантований державою борг | B8: 278.9278672 | C8: 279.3291206
A10: =$A$2 & " (" &C10 & ")" -> Державний та гарантований державою борг України за поточний рік (млрд. дол. США) | C10: =VALUSD -> млрд. дол. США
B11: 2016-12-31 | C11: 2017-01-31
A12: Загальна сума державного та гарантованого державою боргу | B12: =SUM(B13:B14) -> 70.97095473 | C12: 71.20530263
A13: Державний борг | B13: 60.71280594 | C13: 60.90519017
A14: Гарантований державою борг | B14: 10.25814879 | C14: 10.30011246
C16: %%
B17: 2016-12-31 | C17: 2017-01-31
A18: Загальна сума державного та гарантованого державою боргу | B18: =SUM(B19:B20) -> 1 | C18: 1
A19: Державний борг | B19: 0.85546 | C19: 0.855346
A20: Гарантований державою борг | B20: 0.14454 | C20: 0.144654

Sheet SRATE_M (hidden)
A2: ="Державний та гарантований державою борг України за станом на " & TEXT(DREPORTDATE,"dd.MM.yyyy")&" (за видами відсоткових ставок)" -> Державний та гарантований державою борг України за станом на 31.01.2017 (за видами відсоткових ставок)
D4: =VALVAL -> млрд. одиниць
B5: дол.США | C5: грн. | D5: %
A6: Загальна сума державного та гарантованого державою боргу | B6: =SUM(B$7+ B$8) -> 71.20530263 | C6: 1931.019165 | D6: 1
A7: Борг, по якому сплата відсотків здійснюється за плаваючими процентними ставками | B7: 22.25977333 | C7: 603.6635942 | D7: 0.312614
A8: Борг, по якому сплата відсотків здійснюється за фіксованими процентними ставками | B8: 48.9455293 | C8: 1327.355571 | D8: 0.687386

Sheet SRATE (hidden)
A2: ="Державний та гарантований державою борг України за станом на " & TEXT(DREPORTDATE,"dd.MM.yyyy") -> Державний та гарантований державою борг України за станом на 31.01.2017
A3: (за видами відсоткових ставок)
D5: =VALVAL -> млрд. одиниць
B6: дол.США | C6: грн. | D6: %
A7: Загальна сума державного та гарантованого державою боргу | B7: =SUM(B$8+ B$9) -> 71.20530263 | C7: 1931.019165 | D7: 1
A8: =SRATE_M!A7 -> Борг, по якому сплата відсотків здійснюється за плаваючими процентними ставками | B8: =SRATE_M!B7 -> 22.25977333 | C8: =SRATE_M!C7 -> 603.6635942 | D8: =SRATE_M!D7 -> 0.312614
A9: =SRATE_M!A8 -> Борг, по якому сплата відсотків здійснюється за фіксованими процентними ставками | B9: =SRATE_M!B8 -> 48.9455293 | C9: =SRATE_M!C8 -> 1327.355571 | D9: =SRATE_M!D8 -> 0.687386
A11: В тому числі:
D12: =VALVAL -> млрд. одиниць
B13: дол.США | C13: грн. | D13: %
A14: Загальна сума державного та гарантованого державою боргу | B14: =B$18+B$15 -> 71.20530263 | C14: 1931.019165 | D14: 1
A15: Державний борг | B15: =SUM(B$16:B$17) -> 60.90519017 | C15: 1651.690045 | D15: 1.04361
A16: Борг, по якому сплата відсотків здійснюється за плаваючими процентними ставками | B16: 13.4054213 | C16: 363.5421028 | D16: 0.188264
A17: Борг, по якому сплата відсотків здійснюється за фіксованими процентними ставками | B17: 47.49976887 | C17: 1288.147942 | D17: 0.667082
A18: Гарантований державою борг | B18: =SUM(B$19:B$20) -> 10.30011246 | C18: 279.3291206 | D18: 0.269004
A19: Борг, по якому сплата відсотків здійснюється за плаваючими процентними ставками | B19: 8.854352027 | C19: 240.1214914 | D19: 0.12435
A20: Борг, по якому сплата відсотків здійснюється за фіксованими процентними ставками | B20: 1.445760433 | C20: 39.20762923 | D20: 0.020304

Sheet RATE_M
A2: ="Державний та гарантований державою борг України за станом на " & TEXT(DREPORTDATE,"dd.MM.yyyy") -> Державний та гарантований державою борг України за станом на 31.01.2017
A3: (за видами відсоткових ставок)
D5: =VALVAL -> млрд. одиниць
B6: дол.США | C6: грн. | D6: %
A7: Загальна сума державного та гарантованого державою боргу | B7: =SUM(B8:B19) -> 71.20530263 | C7: 1931.019165 | D7: 1
A8: LIBOR | B8: 9.043367166 | C8: 245.2473997 | D8: 0.127004
A9: Ставка МВФ | B9: 13.21640616 | C9: 358.4161944 | D9: 0.18561
A10: Фіксована | B10: 48.9455293 | C10: 1327.355571 | D10: 0.687386

Sheet RATE (hidden)
A2: ="Державний та гарантований державою борг України за станом на " & TEXT(DREPORTDATE,"dd.MM.yyyy") -> Державний та гарантований державою борг України за станом на 31.01.2017
A3: (за видами відсоткових ставок)
D5: =VALVAL -> млрд. одиниць
B6: дол.США | C6: грн. | D6: %
A7: Загальна сума державного та гарантованого державою боргу | B7: =SUM(B8:B18) -> 71.20530263 | C7: 1931.019165 | D7: 1
A8: LIBOR | B8: 9.043367166 | C8: 245.2473997 | D8: 0.127004
A9: Ставка МВФ | B9: 13.21640616 | C9: 358.4161944 | D9: 0.18561
A10: Фіксована | B10: 48.9455293 | C10: 1327.355571 | D10: 0.687386
A19: В тому числі:
B20: ="Державний борг України за станом на " & TEXT(DREPORTDATE,"dd.MM.yyyy") -> Державний борг України за станом на 31.01.2017 | D20: =VALVAL -> млрд. одиниць
B21: дол.США | C21: грн. | D21: %
A22: Загальна сума державного та гарантованого державою боргу | B22: =B$27+B$23 -> 71.20530263 | C22: 1931.019165 | D22: 1
A23: Державний борг | B23: =SUM(B$24:B$26) -> 60.90519017 | C23: 1651.690045 | D23: 0.855346
A24: LIBOR | B24: 6.498645131 | C24: 176.2369913 | D24: 0.091266
A25: Ставка МВФ | B25: 6.906776167 | C25: 187.3051115 | D25: 0.096998
A26: Фіксована | B26: 47.49976887 | C26: 1288.147942 | D26: 0.667082
A27: Гарантований державою борг | B27: =SUM(B$28:B$30) -> 10.30011246 | C27: 279.3291206 | D27: 0.144654
A28: LIBOR | B28: 2.544722035 | C28: 69.01040847 | D28: 0.035738
A29: Ставка МВФ | B29: 6.309629992 | C29: 171.1110829 | D29: 0.088612
A30: Фіксована | B30: 1.445760433 | C30: 39.20762923 | D30: 0.020304

Sheet RATE_CMP (hidden)
A2: Структура боргу за типом ставки на кінець попереднього року та звітну дату
H4: =VALVAL -> млрд. одиниць
B5: 2016-12-31 | E5: 2017-01-31
B6: дол.США | C6: грн. | D6: % | E6: дол.США | F6: грн. | G6: % | H6: Зміна структури
A7: Загальна сума державного та гарантованого державою боргу | B7: =SUM(B8:B15) -> 70.97095473 | C7: 1929.761152 | D7: 1 | E7: 71.20530263 | F7: 1931.019165 | G7: 1 | H7: 0
A8: LIBOR | B8: 9.034967227 | C8: 245.6685109 | D8: 0.127305 | E8: 9.043367166 | F8: 245.2473997 | G8: 0.127004 | H8: -0.000301
A9: Ставка МВФ | B9: 13.07540547 | C9: 355.5314934 | D9: 0.184236 | E9: 13.21640616 | F9: 358.4161944 | G9: 0.18561 | H9: 0.001374
A10: Фіксована | B10: 48.86058204 | C10: 1328.561148 | D10: 0.688459 | E10: 48.9455293 | F10: 1327.355571 | G10: 0.687386 | H10: -0.001073
H11: =G11-D11 -> 0
H12: 0
H13: 0
H17: =VALVAL -> млрд. одиниць
B18: 2016-12-31 | E18: 2017-01-31
B19: дол.США | C19: грн. | D19: % | E19: дол.США | F19: грн. | G19: % | H19: Зміна структури
A20: Загальна сума державного та гарантованого державою боргу | B20: =B$25+B$21 -> 70.97095473 | C20: 1929.761152 | D20: 1 | E20: 71.20530263 | F20: 1931.019165 | G20: 1 | H20: 0
A21: Державний борг | B21: =SUM(B$22:B$24) -> 60.71280594 | C21: 1650.833285 | D21: 0.85546 | E21: 60.90519017 | F21: 1651.690045 | G21: 0.855346 | H21: -0.000114
A22: LIBOR | B22: 6.501014359 | C22: 176.7681583 | D22: 0.091601 | E22: 6.498645131 | F22: 176.2369913 | G22: 0.091266 | H22: -0.000335
A23: Ставка МВФ | B23: 6.833090461 | C23: 185.7975924 | D23: 0.09628 | E23: 6.906776167 | F23: 187.3051115 | G23: 0.096998 | H23: 0.000718
A24: Фіксована | B24: 47.37870112 | C24: 1288.267534 | D24: 0.667579 | E24: 47.49976887 | F24: 1288.147942 | G24: 0.667082 | H24: -0.000497
A25: Гарантований державою борг | B25: =SUM(B$26:B$28) -> 10.25814879 | C25: 278.9278672 | D25: 0.14454 | E25: 10.30011246 | F25: 279.3291206 | G25: 0.144654 | H25: 0.000114
A26: LIBOR | B26: 2.533952867 | C26: 68.90035259 | D26: 0.035704 | E26: 2.544722035 | F26: 69.01040847 | G26: 0.035738 | H26: 3.4e-05
A27: Ставка МВФ | B27: 6.242315006 | C27: 169.7339009 | D27: 0.087956 | E27: 6.309629992 | F27: 171.1110829 | G27: 0.088612 | H27: 0.000656
A28: Фіксована | B28: 1.481880921 | C28: 40.29361371 | D28: 0.02088 | E28: 1.445760433 | F28: 39.20762923 | G28: 0.020304 | H28: -0.000576

Sheet CUR_M
A2: ="Державний та гарантований державою борг України за станом на " & TEXT(DREPORTDATE,"dd.MM.yyyy") -> Державний та гарантований державою борг України за станом на 31.01.2017
A3: (в розрізі валют погашеня)
D5: =VALVAL -> млрд. одиниць
B6: дол.США | C6: грн. | D6: %
A7: Загальна сума державного та гарантованого державою боргу | B7: =SUM(B8:B26) -> 71.20530263 | C7: 1931.019165 | D7: 1
A8: Долар США | B8: 31.5661887 | C8: 856.0446078 | D8: 0.443312
A9: ЄВРО | B9: 4.014793166 | C9: 108.8773204 | D9: 0.056383
A10: Канадський долар | B10: 0.3040835227 | C10: 8.246452 | D10: 0.004271
A11: СПЗ | B11: 13.21640616 | C11: 358.4161944 | D11: 0.18561
A12: Українська гривня | B12: 21.54336102 | C12: 584.2351829 | D12: 0.302553
A13: Японська єна | B13: 0.5604700626 | C13: 15.1994078 | D13: 0.007871

Sheet CUR (hidden)
A2: ="Державний та гарантований державою борг України за станом на " & TEXT(DREPORTDATE,"dd.MM.yyyy") -> Державний та гарантований державою борг України за станом на 31.01.2017
A3: (в розрізі валют погашеня)
D5: =VALVAL -> млрд. одиниць
B6: дол.США | C6: грн. | D6: %
A7: Загальна сума державного та гарантованого державою боргу | B7: =SUM(B8:B18) -> 71.20530263 | C7: 1931.019165 | D7: 1
A8: Долар США | B8: 31.5661887 | C8: 856.0446078 | D8: 0.443312
A9: ЄВРО | B9: 4.014793166 | C9: 108.8773204 | D9: 0.056383
A10: Канадський долар | B10: 0.3040835227 | C10: 8.246452 | D10: 0.004271
A11: СПЗ | B11: 13.21640616 | C11: 358.4161944 | D11: 0.18561
A12: Українська гривня | B12: 21.54336102 | C12: 584.2351829 | D12: 0.302553
A13: Японська єна | B13: 0.5604700626 | C13: 15.1994078 | D13: 0.007871
A20: В тому числі:
B21: ="Державний борг України за станом на " & TEXT(DREPORTDATE,"dd.MM.yyyy") -> Державний борг України за станом на 31.01.2017 | D21: =VALVAL -> млрд. одиниць
B22: дол.США | C22: грн. | D22: %
A23: Загальна сума державного та гарантованого державою боргу | B23: =B$31+B$24 -> 71.20530263 | C23: 1931.019165 | D23: 1.000002
A24: Державний борг | B24: =SUM(B$25:B$30) -> 60.90519017 | C24: 1651.690045 | D24: 0.855347
A25: Долар США | B25: 28.41700939 | C25: 770.6419007 | D25: 0.399086
A26: ЄВРО | B26: 3.876039178 | C26: 105.114446 | D26: 0.054435
A27: Канадський долар | B27: 0.3040835227 | C27: 8.246452 | D27: 0.004271
A28: СПЗ | B28: 6.906776167 | C28: 187.3051115 | D28: 0.096998
A29: Українська гривня | B29: 20.84081185 | C29: 565.1827267 | D29: 0.292686
A30: Японська єна | B30: 0.5604700626 | C30: 15.1994078 | D30: 0.007871
A31: Гарантований державою борг | B31: =SUM(B$32:B$35) -> 10.30011246 | C31: 279.3291206 | D31: 0.144655
A32: Долар США | B32: 3.14917931 | C32: 85.40270708 | D32: 0.044227
A33: ЄВРО | B33: 0.1387539882 | C33: 3.762874401 | D33: 0.001949
A34: СПЗ | B34: 6.309629992 | C34: 171.1110829 | D34: 0.088612
A35: Українська гривня | B35: 0.7025491692 | C35: 19.05245621 | D35: 0.009867

Sheet CUR_CMP (hidden)
A2: Валютна структура державного боргу на кінець попереднього року та звітну дату
H5: =VALVAL -> млрд. одиниць
B6: 2016-12-31 | E6: 2017-01-31
B7: дол.США | C7: грн. | D7: % | E7: дол.США | F7: грн. | G7: % | H7: Зміна структури
A8: Загальна сума державного та гарантованого державою боргу | B8: =SUM(B9:B18) -> 70.97095473 | C8: 1929.761152 | D8: 0.999999 | E8: 71.20530263 | F8: 1931.019165 | G8: 1 | H8: 2.710505431e-19
A9: Долар США | B9: 31.63775002 | C9: 860.2575682 | D9: 0.445784 | E9: 31.5661887 | F9: 856.0446078 | G9: 0.443312 | H9: -0.002472
A10: ЄВРО | B10: 3.93245168 | C10: 106.9267352 | D10: 0.055409 | E10: 4.014793166 | F10: 108.8773204 | G10: 0.056383 | H10: 0.000974
A11: Канадський долар | B11: 0.295407655 | C11: 8.0323876 | D11: 0.004162 | E11: 0.3040835227 | F11: 8.246452 | G11: 0.004271 | H11: 0.000108
A12: СПЗ | B12: 13.07540547 | C12: 355.5314934 | D12: 0.184236 | E12: 13.21640616 | F12: 358.4161944 | G12: 0.18561 | H12: 0.001374
A13: Українська гривня | B13: 21.48006667 | C13: 584.0614428 | D13: 0.30266 | E13: 21.54336102 | F13: 584.2351829 | G13: 0.302553 | H13: -0.000107
A14: Японська єна | B14: 0.5498732387 | C14: 14.95152515 | D14: 0.007748 | E14: 0.5604700626 | F14: 15.1994078 | G14: 0.007871 | H14: 0.000123
H21: =VALVAL -> млрд. одиниць
B22: 2016-12-31 | E22: 2017-01-31
B23: дол.США | C23: грн. | D23: % | E23: дол.США | F23: грн. | G23: % | H23: Зміна структури
A24: Загальна сума державного та гарантованого державою боргу | B24: =B$32+B$25 -> 70.97095473 | C24: 1929.761152 | D24: 0.999999 | E24: 71.20530263 | F24: 1931.019165 | G24: 1.000002 | H24: -1e-06
A25: Державний борг | B25: =SUM(B$26:B$31) -> 60.71280594 | C25: 1650.833285 | D25: 0.855459 | E25: 60.90519017 | F25: 1651.690045 | G25: 0.855347 | H25: -0.000114
A26: Долар США | B26: 28.45312039 | C26: 773.6647561 | D26: 0.400912 | E26: 28.41700939 | F26: 770.6419007 | G26: 0.399086 | H26: -0.001827
A27: ЄВРО | B27: 3.803118543 | C27: 103.4100563 | D27: 0.053587 | E27: 3.876039178 | F27: 105.114446 | G27: 0.054435 | H27: 0.000848
A28: Канадський долар | B28: 0.295407655 | C28: 8.0323876 | D28: 0.004162 | E28: 0.3040835227 | F28: 8.246452 | G28: 0.004271 | H28: 0.000108
A29: СПЗ | B29: 6.833090461 | C29: 185.7975924 | D29: 0.09628 | E29: 6.906776167 | F29: 187.3051115 | G29: 0.096998 | H29: 0.000718
A30: Українська гривня | B30: 20.77819565 | C30: 564.9769675 | D30: 0.29277 | E30: 20.84081185 | F30: 565.1827267 | G30: 0.292686 | H30: -8.4e-05
A31: Японська єна | B31: 0.5498732387 | C31: 14.95152515 | D31: 0.007748 | E31: 0.5604700626 | F31: 15.1994078 | G31: 0.007871 | H31: 0.000123
A32: Гарантований державою борг | B32: =SUM(B$33:B$36) -> 10.25814879 | C32: 278.9278672 | D32: 0.14454 | E32: 10.30011246 | F32: 279.3291206 | G32: 0.144655 | H32: 0.000113
A33: Долар США | B33: 3.184629632 | C33: 86.5928121 | D33: 0.044872 | E33: 3.14917931 | F33: 85.40270708 | G33: 0.044227 | H33: -0.000646
A34: ЄВРО | B34: 0.1293331366 | C34: 3.516678951 | D34: 0.001822 | E34: 0.1387539882 | F34: 3.762874401 | G34: 0.001949 | H34: 0.000126
A35: СПЗ | B35: 6.242315006 | C35: 169.7339009 | D35: 0.087956 | E35: 6.309629992 | F35: 171.1110829 | G35: 0.088612 | H35: 0.000656
A36: Українська гривня | B36: 0.7018710203 | C36: 19.08447525 | D36: 0.00989 | E36: 0.7025491692 | F36: 19.05245621 | G36: 0.009867 | H36: -2.3e-05

Sheet CUR_M_EXT (hidden)
A2: Валютна структура боргу на кінець попереднього року та на звітну дату
N4: =VALVAL -> млрд. одиниць
B5: 2016-12-31 | H5: 2017-01-31
B6: оріг. | C6: курс до USD | D6: курс до UAH | E6: дол.США | F6: грн. | G6: % | H6: оріг. | I6: курс до USD | J6: курс до UAH | K6: дол.США | L6: грн. | M6: % | N6: Зміна структури
A7: Загальна сума державного та гарантованого державою боргу | E7: =SUM(E8:E23) -> 70.97095473 | F7: 1929.761152 | G7: 0.999999 | K7: =SUM(K8:K23) -> 71.20530263 | L7: 1931.019165 | M7: 1 | N7: 2.710505431e-19
A8: Долар США | B8: 31.63775002 | C8: 1 | D8: 27.190858 | E8: 31.63775002 | F8: 860.2575682 | G8: 0.445784 | H8: 31.5661887 | I8: 1 | J8: 27.119036 | K8: 31.5661887 | L8: 856.0446078 | M8: 0.443312 | N8: -0.002472
A9: ЄВРО | B9: 3.762031629 | C9: 1.0453 | D9: 28.422604 | E9: 3.93245168 | F9: 106.9267352 | G9: 0.055409 | H9: 3.776851556 | I9: 1.063 | J9: 28.827535 | K9: 4.014793166 | L9: 108.8773204 | M9: 0.056383 | N9: 0.000974
A10: Канадський долар | B10: 0.4 | C10: 0.738519 | D10: 20.080969 | E10: 0.295407655 | F10: 8.0323876 | G10: 0.004162 | H10: 0.4 | I10: 0.760209 | J10: 20.61613 | K10: 0.3040835227 | L10: 8.246452 | M10: 0.004271 | N10: 0.000108
A11: СПЗ | B11: 9.726323407 | C11: 1.344332 | D11: 36.553534 | E11: 13.07540547 | F11: 355.5314934 | G11: 0.184236 | H11: 9.726323407 | I11: 1.358829 | J11: 36.850121 | K11: 13.21640616 | L11: 358.4161944 | M11: 0.18561 | N11: 0.001374
A12: Українська гривня | B12: 584.0614428 | C12: 0.036777 | D12: 1 | E12: 21.48006667 | F12: 584.0614428 | G12: 0.30266 | H12: 584.2351829 | I12: 0.036874 | J12: 1 | K12: 21.54336102 | L12: 584.2351829 | M12: 0.302553 | N12: -0.000107
A13: Японська єна | B13: 64.198346 | C13: 0.008565 | D13: 0.232896 | E13: 0.5498732387 | F13: 14.95152515 | G13: 0.007748 | H13: 64.198346 | I13: 0.00873 | J13: 0.236757 | K13: 0.5604700626 | L13: 15.1994078 | M13: 0.007871 | N13: 0.000123

Sheet CUR_CMP_EXT (hidden)
A2: Валютна структура боргу на кінець попереднього року та на звітну дату (розширений)
N4: =VALVAL -> млрд. одиниць
B5: 2016-12-31 | H5: 2017-01-31
B6: оріг. | C6: курс до USD | D6: курс до UAH | E6: дол.США | F6: грн. | G6: % | H6: оріг. | I6: курс до USD | J6: курс до UAH | K6: дол.США | L6: грн. | M6: % | N6: Зміна структури
A7: Загальна сума державного та гарантованого державою боргу | E7: =SUM(E8:E24) -> 70.97095473 | F7: 1929.761152 | G7: 0.999999 | K7: =SUM(K8:K24) -> 71.20530263 | L7: 1931.019165 | M7: 1 | N7: 2.710505431e-19
A8: Долар США | B8: 31.63775002 | C8: 1 | D8: 27.190858 | E8: 31.63775002 | F8: 860.2575682 | G8: 0.445784 | H8: 31.5661887 | I8: 1 | J8: 27.119036 | K8: 31.5661887 | L8: 856.0446078 | M8: 0.443312 | N8: -0.002472
A9: ЄВРО | B9: 3.762031629 | C9: 1.0453 | D9: 28.422604 | E9: 3.93245168 | F9: 106.9267352 | G9: 0.055409 | H9: 3.776851556 | I9: 1.063 | J9: 28.827535 | K9: 4.014793166 | L9: 108.8773204 | M9: 0.056383 | N9: 0.000974
A10: Канадський долар | B10: 0.4 | C10: 0.738519 | D10: 20.080969 | E10: 0.295407655 | F10: 8.0323876 | G10: 0.004162 | H10: 0.4 | I10: 0.760209 | J10: 20.61613 | K10: 0.3040835227 | L10: 8.246452 | M10: 0.004271 | N10: 0.000108
A11: СПЗ | B11: 9.726323407 | C11: 1.344332 | D11: 36.553534 | E11: 13.07540547 | F11: 355.5314934 | G11: 0.184236 | H11: 9.726323407 | I11: 1.358829 | J11: 36.850121 | K11: 13.21640616 | L11: 358.4161944 | M11: 0.18561 | N11: 0.001374
A12: Українська гривня | B12: 584.0614428 | C12: 0.036777 | D12: 1 | E12: 21.48006667 | F12: 584.0614428 | G12: 0.30266 | H12: 584.2351829 | I12: 0.036874 | J12: 1 | K12: 21.54336102 | L12: 584.2351829 | M12: 0.302553 | N12: -0.000107
A13: Японська єна | B13: 64.198346 | C13: 0.008565 | D13: 0.232896 | E13: 0.5498732387 | F13: 14.95152515 | G13: 0.007748 | H13: 64.198346 | I13: 0.00873 | J13: 0.236757 | K13: 0.5604700626 | L13: 15.1994078 | M13: 0.007871 | N13: 0.000123
N23: =VALVAL -> млрд. одиниць
B24: 2016-12-31 | H24: 2017-01-31
B25: оріг. | C25: курс до USD | D25: курс до UAH | E25: дол.США | F25: грн. | G25: % | H25: оріг. | I25: курс до USD | J25: курс до UAH | K25: дол.США | L25: грн. | M25: % | N25: Зміна структури
A26: Загальна сума державного та гарантованого державою боргу | B26: =B$34+B$27 -> 693.7858938 | C26: 7.599902 | D26: 206.647857 | E26: 70.97095473 | F26: 1929.761152 | G26: 0.999999 | H26: 693.9028926 | I26: 7.686345 | J26: 208.446271 | K26: 71.20530263 | L26: 1931.019165 | M26: 1.000002 | N26: -1e-06
A27: Державний борг | B27: =SUM(B$28:B$33) -> 666.7496273 | C27: 4.173493 | D27: 113.480861 | E27: 60.71280594 | F27: 1650.833285 | G27: 0.855459 | H27: 666.9272931 | I27: 4.227642 | J27: 114.649579 | K27: 60.90519017 | L27: 1651.690045 | M27: 0.855347 | N27: -0.000114
A28: Долар США | B28: 28.45312039 | C28: 1 | D28: 27.190858 | E28: 28.45312039 | F28: 773.6647561 | G28: 0.400912 | H28: 28.41700939 | I28: 1 | J28: 27.119036 | K28: 28.41700939 | L28: 770.6419007 | M28: 0.399086 | N28: -0.001827
A29: ЄВРО | B29: 3.638303382 | C29: 1.0453 | D29: 28.422604 | E29: 3.803118543 | F29: 103.4100563 | G29: 0.053587 | H29: 3.646320992 | I29: 1.063 | J29: 28.827535 | K29: 3.876039178 | L29: 105.114446 | M29: 0.054435 | N29: 0.000848
A30: Канадський долар | B30: 0.4 | C30: 0.738519 | D30: 20.080969 | E30: 0.295407655 | F30: 8.0323876 | G30: 0.004162 | H30: 0.4 | I30: 0.760209 | J30: 20.61613 | K30: 0.3040835227 | L30: 8.246452 | M30: 0.004271 | N30: 0.000108
A31: СПЗ | B31: 5.08289 | C31: 1.344332 | D31: 36.553534 | E31: 6.833090461 | F31: 185.7975924 | G31: 0.09628 | H31: 5.08289 | I31: 1.358829 | J31: 36.850121 | K31: 6.906776167 | L31: 187.3051115 | M31: 0.096998 | N31: 0.000718
A32: Українська гривня | B32: 564.9769675 | C32: 0.036777 | D32: 1 | E32: 20.77819565 | F32: 564.9769675 | G32: 0.29277 | H32: 565.1827267 | I32: 0.036874 | J32: 1 | K32: 20.84081185 | L32: 565.1827267 | M32: 0.292686 | N32: -8.4e-05
A33: Японська єна | B33: 64.198346 | C33: 0.008565 | D33: 0.232896 | E33: 0.5498732387 | F33: 14.95152515 | G33: 0.007748 | H33: 64.198346 | I33: 0.00873 | J33: 0.236757 | K33: 0.5604700626 | L33: 15.1994078 | M33: 0.007871 | N33: 0.000123
A34: Гарантований державою борг | B34: =SUM(B$35:B$38) -> 27.03626653 | C34: 3.426409 | D34: 93.166996 | E34: 10.25814879 | F34: 278.9278672 | G34: 0.14454 | H34: 26.97559949 | I34: 3.458703 | J34: 93.796692 | K34: 10.30011246 | L34: 279.3291206 | M34: 0.144655 | N34: 0.000113
A35: Долар США | B35: 3.184629632 | C35: 1 | D35: 27.190858 | E35: 3.184629632 | F35: 86.5928121 | G35: 0.044872 | H35: 3.14917931 | I35: 1 | J35: 27.119036 | K35: 3.14917931 | L35: 85.40270708 | M35: 0.044227 | N35: -0.000646
A36: ЄВРО | B36: 0.1237282464 | C36: 1.0453 | D36: 28.422604 | E36: 0.1293331366 | F36: 3.516678951 | G36: 0.001822 | H36: 0.1305305639 | I36: 1.063 | J36: 28.827535 | K36: 0.1387539882 | L36: 3.762874401 | M36: 0.001949 | N36: 0.000126
A37: СПЗ | B37: 4.643433407 | C37: 1.344332 | D37: 36.553534 | E37: 6.242315006 | F37: 169.7339009 | G37: 0.087956 | H37: 4.643433407 | I37: 1.358829 | J37: 36.850121 | K37: 6.309629992 | L37: 171.1110829 | M37: 0.088612 | N37: 0.000656
A38: Українська гривня | B38: 19.08447525 | C38: 0.036777 | D38: 1 | E38: 0.7018710203 | F38: 19.08447525 | G38: 0.00989 | H38: 19.05245621 | I38: 0.036874 | J38: 1 | K38: 0.7025491692 | L38: 19.05245621 | M38: 0.009867 | N38: -2.3e-05

Sheet DKT1 (hidden)
A2: ="Державний та гарантований державою борг України за станом на " & TEXT(DREPORTDATE,"dd.MM.yyyy") -> Державний та гарантований державою борг України за станом на 31.01.2017
A3: (за типом кредитора)
D5: =VALVAL -> млрд. одиниць
B6: дол.США | C6: грн. | D6: % | E6: FORMAT
A7: Загальна сума державного та гарантованого державою боргу | B7: =B$18+B$8 -> 71.20530263 | C7: 1931.019165 | D7: 0.999999 | E7: 3
A8: Державний борг | B8: =B$9+B$12 -> 60.90519017 | C8: 1651.690045 | D8: 0.855347 | E8: 3
A9: Внутрішній борг | B9: =SUM(B$10:B$11) -> 24.729493 | C9: 670.6400111 | D9: 0.347298 | E9: 2
A10: 1. Заборгованість за випущеними цінними паперами на внутрішньому ринку | B10: 24.63683492 | C10: 668.1272131 | D10: 0.345997 | E10: 1
A11: 2. Заборгованість перед банківськими та іншими фінансовими установами | B11: 0.09265808444 | C11: 2.512797928 | D11: 0.001301
A12: Зовнішній борг | B12: =SUM(B$13:B$17) -> 36.17569716 | C12: 981.0500337 | D12: 0.508049
A13: 1. Заборгованість за позиками, одержаними від міжнародних фінансових організацій | B13: 13.76189128 | C13: 373.209225 | D13: 0.193271
A14: 2. Заборгованість за позиками, одержаними від органів управління іноземних держав | B14: 1.701780047 | C14: 46.15063435 | D14: 0.0239
A15: 3. Заборгованість за позиками, одержаними від іноземних комерційних банків, інших іноземних фінансових установ | B15: 5.435034e-05 | C15: 0.0014739288 | D15: 1e-06
A16: 4. Заборгованість за випущеними цінними паперами на зовнішньому ринку | B16: 19.04333 | C16: 516.4367518 | D16: 0.267443
A17: 5. Заборгованість, не віднесена до інших категорій | B17: 1.668641488 | C17: 45.25194859 | D17: 0.023434
A18: Гарантований державою борг | B18: =B$19+B$23 -> 10.30011246 | C18: 279.3291206 | D18: 0.144652
A19: Внутрішній борг | B19: =SUM(B$20:B$22) -> 0.7025196707 | C19: 19.05165624 | D19: 0.009866
A20: 1. Заборгованість за випущеними цінними паперами на внутрішньому ринку | B20: 0.5881481775 | C20: 15.9500116 | D20: 0.00826
A21: 2. Заборгованість перед банківськими та іншими фінансовими установами | B21: 0.114336291 | C21: 3.100689992 | D21: 0.001606
A22: 3. Заборгованість, не віднесена до інших категорій | B22: 3.520221e-05 | C22: 0.00095465 | D22: 0
A23: Зовнішній борг | B23: =SUM(B$24:B$28) -> 9.597592789 | C23: 260.2774644 | D23: 0.134786
A24: 1. Заборгованість за позиками, одержаними від міжнародних фінансових організацій | B24: 7.098693488 | C24: 192.5097242 | D24: 0.099693
A25: 2. Заборгованість за позиками, одержаними від органів управління іноземних держав | B25: 0.1218473166 | C25: 3.304381766 | D25: 0.001711
A26: 2. Заборгованість перед банківськими та іншими фінансовими установами | B26: 2.949854e-05 | C26: 0.0007999719 | D26: 0
A27: 3. Заборгованість за позиками, одержаними від іноземних комерційних банків, інших іноземних фінансових установ | B27: 2.266354858 | C27: 61.46135897 | D27: 0.031828
A28: 5. Заборгованість, не віднесена до інших категорій | B28: 0.1106676285 | C28: 3.001199403 | D28: 0.001554

Sheet DKR (hidden)
A2: ="Державний та гарантований державою борг України за станом на " & TEXT(DREPORTDATE,"dd.MM.yyyy") -> Державний та гарантований державою борг України за станом на 31.01.2017
A3: (за типом кредитора)
D5: =VALVAL -> млрд. одиниць
B6: дол.США | C6: грн. | D6: %
A7: Загальна сума державного та гарантованого державою боргу | B7: =SUM(B8:B46) -> 71.20530263 | C7: 1931.019165 | D7: 0.999999
A8: Внутрішній борг за випущеними цінними паперами | B8: 25.2249831 | C8: 684.0772247 | D8: 0.354257
A9: Внутрішній борг перед банківськими та іншими фінансовими установами | B9: 0.207023874 | C9: 5.614287891 | D9: 0.002907
A10: Внутрішня заборгованість, не віднесена до інших категорій | B10: 3.520221e-05 | C10: 0.00095465 | D10: 0
A11: Зовнішній борг за випущеними цінними паперами | B11: 19.04333 | C11: 516.4367518 | D11: 0.267443
A12: Зовнішній борг за позиками, одержаними від іноземних комерційних банків, інших іноземних фінансових установ | B12: 2.266409208 | C12: 61.4628329 | D12: 0.031829
A13: Зовнішній борг за позиками, одержаними від міжнародних фінансових організацій | B13: 20.86058477 | C13: 565.7189493 | D13: 0.292964
A14: Зовнішній борг за позиками, одержаними від органів управління іноземних держав | B14: 1.823627363 | C14: 49.45501612 | D14: 0.025611
A15: Зовнішній борг, не віднесений до інших категорій | B15: 1.779309117 | C15: 48.25314799 | D15: 0.024988

Sheet DKR2 (hidden)
A1: ="Державний борг України за станом на " & TEXT(DREPORTDATE,"dd.MM.yyyy") -> Державний борг України за станом на 31.01.2017
A2: ="Гарантований державою борг України за станом на " & TEXT(DREPORTDATE,"dd.MM.yyyy") -> Гарантований державою борг України за станом на 31.01.2017
A3: ="Державний та гарантований державою борг України за станом на " & TEXT(DREPORTDATE,"dd.MM.yyyy") -> Державний та гарантований державою борг України за станом на 31.01.2017
A4: (за типом кредитора)
D6: =VALVAL -> млрд. одиниць
B7: дол.США | C7: грн. | D7: %
A8: Загальна сума державного та гарантованого державою боргу | B8: =B$17+B$9 -> 71.20530263 | C8: 1931.019165 | D8: 2.091993
A9: Державний борг | B9: =SUM(B$10:B$16) -> 60.90519017 | C9: 1651.690045 | D9: 1.255347
A10: Внутрішній борг за випущеними цінними паперами | B10: 24.63683492 | C10: 668.1272131 | D10: 0.345997
A11: Внутрішній борг перед банківськими та іншими фінансовими установами | B11: 0.09265808444 | C11: 2.512797928 | D11: 0.001301
A12: Зовнішній борг за випущеними цінними паперами | B12: 19.04333 | C12: 516.4367518 | D12: 0.267443
A13: Зовнішній борг за позиками, одержаними від іноземних комерційних банків, інших іноземних фінансових установ | B13: 5.435034e-05 | C13: 0.0014739288 | D13: 1e-06
A14: Зовнішній борг за позиками, одержаними від міжнародних фінансових організацій | B14: 13.76189128 | C14: 373.209225 | D14: 0.193271
A15: Зовнішній борг за позиками, одержаними від органів управління іноземних держав | B15: 1.701780047 | C15: 46.15063435 | D15: 0.0239
A16: Зовнішній борг, не віднесений до інших категорій | B16: 1.668641488 | C16: 45.25194859 | D16: 0.023434
A17: Гарантований державою борг | B17: =SUM(B$18:B$24) -> 10.30011246 | C17: 279.3291206 | D17: 0.144652
A18: Внутрішній борг за випущеними цінними паперами | B18: 0.5881481775 | C18: 15.9500116 | D18: 0.00826
A19: Внутрішній борг перед банківськими та іншими фінансовими установами | B19: 0.1143657895 | C19: 3.101489963 | D19: 0.001606
A20: Внутрішня заборгованість, не віднесена до інших категорій | B20: 3.520221e-05 | C20: 0.00095465 | D20: 0
A21: Зовнішній борг за позиками, одержаними від іноземних комерційних банків, інших іноземних фінансових установ | B21: 2.266354858 | C21: 61.46135897 | D21: 0.031828
A22: Зовнішній борг за позиками, одержаними від міжнародних фінансових організацій | B22: 7.098693488 | C22: 192.5097242 | D22: 0.099693
A23: Зовнішній борг за позиками, одержаними від органів управління іноземних держав | B23: 0.1218473166 | C23: 3.304381766 | D23: 0.001711
A24: Зовнішній борг, не віднесений до інших категорій | B24: 0.1106676285 | C24: 3.001199403 | D24: 0.001554

Sheet YT_ALL (hidden)
A2: Державний та гарантований державою борг України за останні 5 років
A4: =$A$2 & " (" &G4 & ")" -> Державний та гарантований державою борг України за останні 5 років (млрд. грн) | G4: =VALUAH -> млрд. грн
B5: 2012-12-31 | C5: 2013-12-31 | D5: 2014-12-31 | E5: 2015-12-31 | F5: 2016-12-31 | G5: 2017-01-31
A6: Загальна сума державного та гарантованого державою боргу | B6: =SUM(B$7+ B$8) -> 515.5108331 | C6: 584.7865709 | D6: 1100.833217 | E6: 1572.180159 | F6: 1929.761152 | G6: 1931.019165
A7: Внутрішній борг | B7: 206.5107136 | C7: 284.0887255 | D7: 488.8669074 | E7: 529.460578 | F7: 689.7300058 | G7: 689.6916673
A8: Зовнішній борг | B8: 309.0001195 | C8: 300.6978455 | D8: 611.9663093 | E8: 1042.719581 | F8: 1240.031146 | G8: 1241.327498
A10: =$A$2 & " (" &G10 & ")" -> Державний та гарантований державою борг України за останні 5 років (млрд. дол. США) | G10: =VALUSD -> млрд. дол. США
B11: 2012-12-31 | C11: 2013-12-31 | D11: 2014-12-31 | E11: 2015-12-31 | F11: 2016-12-31 | G11: 2017-01-31
A12: Загальна сума державного та гарантованого державою боргу | B12: =SUM(B$13+ B$14) -> 64.49528751 | C12: 73.16233841 | D12: 69.81192296 | E12: 65.50568611 | F12: 70.97095473 | G12: 71.20530263
A13: Внутрішній борг | B13: 25.83644609 | C13: 35.5421901 | D13: 31.00264269 | E13: 22.06024433 | F13: 25.36624647 | G13: 25.43201268
A14: Зовнішній борг | B14: 38.65884142 | C14: 37.62014831 | D14: 38.80928028 | E14: 43.44544179 | F14: 45.60470826 | G14: 45.77328995
G16: %
B17: 2012-12-31 | C17: 2013-12-31 | D17: 2014-12-31 | E17: 2015-12-31 | F17: 2016-12-31 | G17: 2017-01-31
A18: Загальна сума державного та гарантованого державою боргу | B18: =SUM(B$19+ B$20) -> 1 | C18: 1 | D18: 1 | E18: 1 | F18: 1 | G18: 1
A19: Внутрішній борг | B19: 0.400594 | C19: 0.485799 | D19: 0.444088 | E19: 0.336768 | F19: 0.357417 | G19: 0.357165
A20: Зовнішній борг | B20: 0.599406 | C20: 0.514201 | D20: 0.555912 | E20: 0.663232 | F20: 0.642583 | G20: 0.642835

Sheet YTM_ALL (hidden)
A2: Державний та гарантований державою борг України за останні 5 років
G4: млрд. грн.
B5: =YT_ALL!B5 -> 2012-12-31 | C5: =YT_ALL!C5 -> 2013-12-31 | D5: =YT_ALL!D5 -> 2014-12-31 | E5: =YT_ALL!E5 -> 2015-12-31 | F5: =YT_ALL!F5 -> 2016-12-31 | G5: =YT_ALL!G5 -> 2017-01-31
A6: Загальна сума державного та гарантованого державою боргу | B6: =SUM(B$7+ B$8) -> 515.5108331 | C6: 584.7865709 | D6: 1100.833217 | E6: 1572.180159 | F6: 1929.761152 | G6: 1931.019165
A7: =YT_ALL!A7 -> Внутрішній борг | B7: =YT_ALL!B7/DMLMLR -> 206.5107136 | C7: =YT_ALL!C7/DMLMLR -> 284.0887255 | D7: =YT_ALL!D7/DMLMLR -> 488.8669074 | E7: =YT_ALL!E7/DMLMLR -> 529.460578 | F7: =YT_ALL!F7/DMLMLR -> 689.7300058 | G7: =YT_ALL!G7/DMLMLR -> 689.6916673
A8: =YT_ALL!A8 -> Зовнішній борг | B8: =YT_ALL!B8/DMLMLR -> 309.0001195 | C8: =YT_ALL!C8/DMLMLR -> 300.6978455 | D8: =YT_ALL!D8/DMLMLR -> 611.9663093 | E8: =YT_ALL!E8/DMLMLR -> 1042.719581 | F8: =YT_ALL!F8/DMLMLR -> 1240.031146 | G8: =YT_ALL!G8/DMLMLR -> 1241.327498
G10: млрд. дол.США
B11: =YT_ALL!B11 -> 2012-12-31 | C11: =YT_ALL!C11 -> 2013-12-31 | D11: =YT_ALL!D11 -> 2014-12-31 | E11: =YT_ALL!E11 -> 2015-12-31 | F11: =YT_ALL!F11 -> 2016-12-31 | G11: =YT_ALL!G11 -> 2017-01-31
A12: Загальна сума державного та гарантованого державою боргу | B12: =SUM(B$13+ B$14) -> 64.49528751 | C12: 73.16233841 | D12: 69.81192296 | E12: 65.50568611 | F12: 70.97095473 | G12: 71.20530263
A13: =YT_ALL!A13 -> Внутрішній борг | B13: =YT_ALL!B13/DMLMLR -> 25.83644609 | C13: =YT_ALL!C13/DMLMLR -> 35.5421901 | D13: =YT_ALL!D13/DMLMLR -> 31.00264269 | E13: =YT_ALL!E13/DMLMLR -> 22.06024433 | F13: =YT_ALL!F13/DMLMLR -> 25.36624647 | G13: =YT_ALL!G13/DMLMLR -> 25.43201268
A14: =YT_ALL!A14 -> Зовнішній борг | B14: =YT_ALL!B14/DMLMLR -> 38.65884142 | C14: =YT_ALL!C14/DMLMLR -> 37.62014831 | D14: =YT_ALL!D14/DMLMLR -> 38.80928028 | E14: =YT_ALL!E14/DMLMLR -> 43.44544179 | F14: =YT_ALL!F14/DMLMLR -> 45.60470826 | G14: =YT_ALL!G14/DMLMLR -> 45.77328995
G16: %
B17: =YT_ALL!B17 -> 2012-12-31 | C17: =YT_ALL!C17 -> 2013-12-31 | D17: =YT_ALL!D17 -> 2014-12-31 | E17: =YT_ALL!E17 -> 2015-12-31 | F17: =YT_ALL!F17 -> 2016-12-31 | G17: =YT_ALL!G17 -> 2017-01-31
A18: Загальна сума державного та гарантованого державою боргу | B18: =SUM(B$19+ B$20) -> 1 | C18: 1 | D18: 1 | E18: 1 | F18: 1 | G18: 1
A19: =YT_ALL!A19 -> Внутрішній борг | B19: =YT_ALL!B19 -> 0.400594 | C19: =YT_ALL!C19 -> 0.485799 | D19: =YT_ALL!D19 -> 0.444088 | E19: =YT_ALL!E19 -> 0.336768 | F19: =YT_ALL!F19 -> 0.357417 | G19: =YT_ALL!G19 -> 0.357165
A20: =YT_ALL!A20 -> Зовнішній борг | B20: =YT_ALL!B20 -> 0.599406 | C20: =YT_ALL!C20 -> 0.514201 | D20: =YT_ALL!D20 -> 0.555912 | E20: =YT_ALL!E20 -> 0.663232 | F20: =YT_ALL!F20 -> 0.642583 | G20: =YT_ALL!G20 -> 0.642835

Sheet YKM_ALL (hidden)
A2: Державний та гарантований державою борг України за останні 5 років
G4: млрд. грн.
B5: =YT_ALL!B5 -> 2012-12-31 | C5: =YT_ALL!C5 -> 2013-12-31 | D5: =YT_ALL!D5 -> 2014-12-31 | E5: =YT_ALL!E5 -> 2015-12-31 | F5: =YT_ALL!F5 -> 2016-12-31 | G5: =YT_ALL!G5 -> 2017-01-31
A6: Загальна сума державного та гарантованого державою боргу | B6: =SUM(B$7+ B$8) -> 515.5108331 | C6: 584.7865709 | D6: 1100.833217 | E6: 1572.180159 | F6: 1929.761152 | G6: 1931.019165
A7: =YK_ALL!A7 -> Державний борг | B7: =YK_ALL!B7/DMLMLR -> 399.2182341 | C7: =YK_ALL!C7/DMLMLR -> 480.2186294 | D7: =YK_ALL!D7/DMLMLR -> 947.0304691 | E7: =YK_ALL!E7/DMLMLR -> 1334.271601 | F7: =YK_ALL!F7/DMLMLR -> 1650.833285 | G7: =YK_ALL!G7/DMLMLR -> 1651.690045
A8: =YK_ALL!A8 -> Гарантований державою борг | B8: =YK_ALL!B8/DMLMLR -> 116.292599 | C8: =YK_ALL!C8/DMLMLR -> 104.5679415 | D8: =YK_ALL!D8/DMLMLR -> 153.8027476 | E8: =YK_ALL!E8/DMLMLR -> 237.9085577 | F8: =YK_ALL!F8/DMLMLR -> 278.9278672 | G8: =YK_ALL!G8/DMLMLR -> 279.3291206
G10: млрд. дол.США
B11: =YT_ALL!B11 -> 2012-12-31 | C11: =YT_ALL!C11 -> 2013-12-31 | D11: =YT_ALL!D11 -> 2014-12-31 | E11: =YT_ALL!E11 -> 2015-12-31 | F11: =YT_ALL!F11 -> 2016-12-31 | G11: =YT_ALL!G11 -> 2017-01-31
A12: Загальна сума державного та гарантованого державою боргу | B12: =SUM(B$13+ B$14) -> 64.49528751 | C12: 73.16233841 | D12: 69.81192296 | E12: 65.50568611 | F12: 70.97095473 | G12: 71.20530263
A13: =YK_ALL!A13 -> Державний борг | B13: =YK_ALL!B13/DMLMLR -> 49.945982 | C13: =YK_ALL!C13/DMLMLR -> 60.07989859 | D13: =YK_ALL!D13/DMLMLR -> 60.05816063 | E13: =YK_ALL!E13/DMLMLR -> 55.59310503 | F13: =YK_ALL!F13/DMLMLR -> 60.71280594 | G13: =YK_ALL!G13/DMLMLR -> 60.90519017
A14: =YK_ALL!A14 -> Гарантований державою борг | B14: =YK_ALL!B14/DMLMLR -> 14.54930551 | C14: =YK_ALL!C14/DMLMLR -> 13.08243982 | D14: =YK_ALL!D14/DMLMLR -> 9.753762333 | E14: =YK_ALL!E14/DMLMLR -> 9.912581084 | F14: =YK_ALL!F14/DMLMLR -> 10.25814879 | G14: =YK_ALL!G14/DMLMLR -> 10.30011246
G16: %
B17: =YT_ALL!B17 -> 2012-12-31 | C17: =YT_ALL!C17 -> 2013-12-31 | D17: =YT_ALL!D17 -> 2014-12-31 | E17: =YT_ALL!E17 -> 2015-12-31 | F17: =YT_ALL!F17 -> 2016-12-31 | G17: =YT_ALL!G17 -> 2017-01-31
A18: Загальна сума державного та гарантованого державою боргу | B18: =SUM(B$19+ B$20) -> 1 | C18: 1 | D18: 1 | E18: 1 | F18: 1 | G18: 1
A19: =YK_ALL!A19 -> Державний борг | B19: =YK_ALL!B19 -> 0.774413 | C19: =YK_ALL!C19 -> 0.821186 | D19: =YK_ALL!D19 -> 0.860285 | E19: =YK_ALL!E19 -> 0.848676 | F19: =YK_ALL!F19 -> 0.85546 | G19: =YK_ALL!G19 -> 0.855346
A20: =YK_ALL!A20 -> Гарантований державою борг | B20: =YK_ALL!B20 -> 0.225587 | C20: =YK_ALL!C20 -> 0.178814 | D20: =YK_ALL!D20 -> 0.139715 | E20: =YK_ALL!E20 -> 0.151324 | F20: =YK_ALL!F20 -> 0.14454 | G20: =YK_ALL!G20 -> 0.144654

Sheet YK_ALL (hidden)
A2: Державний та гарантований державою борг України за останні 5 років
G4: =VALUAH -> млрд. грн
B5: 2012-12-31 | C5: 2013-12-31 | D5: 2014-12-31 | E5: 2015-12-31 | F5: 2016-12-31 | G5: 2017-01-31
A6: Загальна сума державного та гарантованого державою боргу | B6: =SUM(B$7+ B$8) -> 515.5108331 | C6: 584.7865709 | D6: 1100.833217 | E6: 1572.180159 | F6: 1929.761152 | G6: 1931.019165
A7: Державний борг | B7: 399.2182341 | C7: 480.2186294 | D7: 947.0304691 | E7: 1334.271601 | F7: 1650.833285 | G7: 1651.690045
A8: Гарантований державою борг | B8: 116.292599 | C8: 104.5679415 | D8: 153.8027476 | E8: 237.9085577 | F8: 278.9278672 | G8: 279.3291206
G10: =VALUSD -> млрд. дол. США
B11: 2012-12-31 | C11: 2013-12-31 | D11: 2014-12-31 | E11: 2015-12-31 | F11: 2016-12-31 | G11: 2017-01-31
A12: Загальна сума державного та гарантованого державою боргу | B12: =SUM(B$13+ B$14) -> 64.49528751 | C12: 73.16233841 | D12: 69.81192296 | E12: 65.50568611 | F12: 70.97095473 | G12: 71.20530263
A13: Державний борг | B13: 49.945982 | C13: 60.07989859 | D13: 60.05816063 | E13: 55.59310503 | F13: 60.71280594 | G13: 60.90519017
A14: Гарантований державою борг | B14: 14.54930551 | C14: 13.08243982 | D14: 9.753762333 | E14: 9.912581084 | F14: 10.25814879 | G14: 10.30011246
G16: %
B17: 2012-12-31 | C17: 2013-12-31 | D17: 2014-12-31 | E17: 2015-12-31 | F17: 2016-12-31 | G17: 2017-01-31
A18: Загальна сума державного та гарантованого державою боргу | B18: =SUM(B$19+ B$20) -> 1 | C18: 1 | D18: 1 | E18: 1 | F18: 1 | G18: 1
A19: Державний борг | B19: 0.774413 | C19: 0.821186 | D19: 0.860285 | E19: 0.848676 | F19: 0.85546 | G19: 0.855346
A20: Гарантований державою борг | B20: 0.225587 | C20: 0.178814 | D20: 0.139715 | E20: 0.151324 | F20: 0.14454 | G20: 0.144654

Sheet YKT2_UAH
A2: Державний та гарантований державою борг України за останні 5 років
G4: =VALUAH -> млрд. грн
B5: 2012-12-31 | C5: 2013-12-31 | D5: 2014-12-31 | E5: 2015-12-31 | F5: 2016-12-31 | G5: 2017-01-31
A6: Загальна сума державного та гарантованого державою боргу | B6: =B$7+B$65 -> 515.5108331 | C6: 584.7865709 | D6: 1100.833217 | E6: 1572.180159 | F6: 1929.761152 | G6: 1931.019165
A7: Державний борг | B7: =B$8+B$33 -> 399.2182341 | C7: 480.2186294 | D7: 947.0304691 | E7: 1334.271601 | F7: 1650.833285 | G7: 1651.690045
A8: Внутрішній борг | B8: =B$9+B$31 -> 190.2992977 | C8: 256.9595757 | D8: 461.0036228 | E8: 508.0011231 | F8: 670.6455305 | G8: 670.6400111
A9: 1. Заборгованість за випущеними цінними паперами на внутрішньому ринку | B9: =SUM(B$10:B$30) -> 187.2574897 | C9: 254.0500202 | D9: 458.2263198 | E9: 505.3560727 | F9: 668.1327326 | G9: 668.1272131
A10: Казначейські зобов'язання | B10: 0.8262324135 | C10: 1.5986 | D10: 0.088426 | E10: 0.098638 | F10: 0 | G10: 0
A11: ОВДП (1 - місячні) | B11: 0 | C11: 2.360977795 | D11: 0 | E11: 0 | F11: 0 | G11: 0
A12: ОВДП (10 - річні) | B12: 15.412189 | C12: 15.742189 | D12: 50.254465 | E12: 60.558463 | F12: 74.832983 | G12: 74.832983
A13: ОВДП (11 - річні) | B13: 3.849981 | C13: 3.849981 | D13: 3.849981 | E13: 17.382981 | F13: 17.382981 | G13: 17.382981
A14: ОВДП (12 - місячні) | B14: 14.39281113 | C14: 2.9587168 | D14: 7.33788948 | E14: 8.283710212 | F14: 3.47757 | G14: 3.45757
A15: ОВДП (12 - річні) | B15: 1.5 | C15: 1.5 | D15: 1.5 | E15: 12.5 | F15: 28.5 | G15: 28.5
A16: ОВДП (13 - річні) | B16: 0 | C16: 0 | D16: 2.61763 | E16: 13.11763 | F16: 37.11763 | G16: 37.11763
A17: ОВДП (14 - річні) | B17: 0 | C17: 0 | D17: 3.25 | E17: 3.25 | F17: 51.25 | G17: 51.25
A18: ОВДП (15 - річні) | B18: 0 | C18: 0 | D18: 15.84884 | E18: 15.84884 | F18: 42.789838 | G18: 42.789838
A19: ОВДП (18 - місячні) | B19: 5.709035823 | C19: 2.803424855 | D19: 0.76931632 | E19: 1.04892516 | F19: 29.25796141 | G19: 29.18067935
A20: ОВДП (2 - річні) | B20: 11.0783616 | C20: 20.37080624 | D20: 40.90737357 | E20: 21.91034234 | F20: 64.35343953 | G20: 64.33258522
A21: ОВДП (3 - місячні) | B21: 0 | C21: 0 | D21: 0 | E21: 0 | F21: 0.01 | G21: 0.01
A22: ОВДП (3 - річні) | B22: 28.45427742 | C22: 34.65649649 | D22: 46.58505481 | E22: 43.37723613 | F22: 18.462385 | G22: 19.409305
A23: ОВДП (4 - річні) | B23: 1.598269 | C23: 6.5181647 | D23: 2.92218286 | E23: 15.04510672 | F23: 15.58553728 | G23: 15.57404576
A24: ОВДП (5 - річні) | B24: 32.6656933 | C24: 75.31738528 | D24: 131.3797728 | E24: 149.0338121 | F24: 151.5696514 | G24: 150.9532078
A25: ОВДП (6 - місячні) | B25: 0 | C25: 0.55379 | D25: 0.17 | E25: 0 | F25: 0.215801 | G25: 0.01
A26: ОВДП (6 - річні) | B26: 9.5 | C26: 9.5 | D26: 27.1 | E26: 27.1 | F26: 24.1 | G26: 24.1
A27: ОВДП (7 - річні) | B27: 33.095042 | C27: 47.143891 | D27: 54.624791 | E27: 48.624791 | F27: 44.739791 | G27: 44.739791
A28: ОВДП (8 - річні) | B28: 14.301198 | C28: 14.301198 | D28: 31.301198 | E28: 31.301198 | F28: 27.416198 | G28: 27.416198
A29: ОВДП (9 - місячні) | B29: 0 | C29: 0 | D29: 0.845 | E29: 0 | F29: 0.196567 | G29: 0.196
A30: ОВДП (9 - річні) | B30: 14.874399 | C30: 14.874399 | D30: 36.874399 | E30: 36.874399 | F30: 36.874399 | G30: 36.874399
A31: 2. Заборгованість перед банківськими та іншими фінансовими установами | B31: =SUM(B$32:B$32) -> 3.041808018 | C31: 2.909555495 | D31: 2.777302973 | E31: 2.64505045 | F31: 2.512797928 | G31: 2.512797928
A32: Національний банк України | B32: 3.041808018 | C32: 2.909555495 | D32: 2.777302973 | E32: 2.64505045 | F32: 2.512797928 | G32: 2.512797928
A33: Зовнішній борг | B33: =B$34+B$41+B$49+B$51+B$63 -> 208.9189364 | C33: 223.2590538 | D33: 486.0268463 | E33: 826.2704782 | F33: 980.1877545 | G33: 981.0500337
A34: 1. Заборгованість за позиками, одержаними від міжнародних фінансових організацій | B34: =SUM(B$35:B$40) -> 80.09720305 | C34: 61.90365009 | D34: 169.0899033 | E34: 337.4492911 | F34: 371.8465755 | G34: 373.209225
A35: Європейське Співтовариство | B35: 0 | C35: 0 | D35: 26.15675488 | E35: 57.95311509 | F35: 62.81395484 | G35: 63.70885235
A36: Європейський банк реконструкції та розвитку | B36: 4.266735656 | C36: 4.766645754 | D36: 9.368981111 | E36: 13.99069907 | F36: 16.0723087 | G36: 16.53241549
A37: Європейський Інвестиційний Банк | B37: 3.203300288 | C37: 4.283134554 | D37: 7.652991944 | E37: 12.53014512 | F37: 14.52237776 | G37: 14.72927509
A38: Міжнародний банк реконструкції та розвитку | B38: 24.23351704 | C38: 24.53954845 | D38: 68.31898228 | E38: 124.7471258 | F38: 137.4605065 | G38: 136.1181227
A39: Міжнародний Валютний Фонд | B39: 48.39365006 | C39: 28.31432133 | D39: 57.58509724 | E39: 128.2076972 | F39: 140.9098527 | G39: 142.0531629
A40: Фонд чистих технологій (МБРР) | B40: 0 | C40: 0 | D40: 0.0070958502 | E40: 0.02050886997 | F40: 0.06757499901 | G40: 0.06739650623
A41: 2. Заборгованість за позиками, одержаними від органів управління іноземних держав | B41: =SUM(B$42:B$48) -> 9.099501375 | C41: 7.278928575 | D41: 16.37226171 | E41: 32.70852715 | F41: 45.64750416 | G41: 46.15063435
A42: Італія | B42: 0.08464974598 | C42: 0 | D42: 0 | E42: 0 | F42: 0 | G42: 0
A43: Канада | B43: 0 | C43: 0 | D43: 2.7121072 | E43: 6.9140144 | F43: 8.0323876 | G43: 8.246452
A44: Німеччина | B44: 0.4819254518 | C44: 0.1064888486 | D44: 0.134630356 | E44: 5.428187703 | F44: 5.983279353 | G44: 6.068521905
A45: Росія | B45: 6.405237389 | C45: 5.623921639 | D45: 9.553472056 | E45: 14.54094475 | F45: 16.47374066 | G45: 16.43022688
A46: США | B46: 0.2648623985 | C46: 0.09489139132 | D46: 0.1647326001 | E46: 0.216533956 | F46: 0.2065714027 | G46: 0.2060257645
A47: Франція | B47: 0.02220053566 | C47: 0 | D47: 0 | E47: 0 | F47: 0 | G47: 0
A48: Японія | B48: 1.840625854 | C48: 1.453626696 | D48: 3.807319496 | E48: 5.608846349 | F48: 14.95152515 | G48: 15.1994078
A49: 3. Заборгованість за позиками, одержаними від іноземних комерційних банків, інших іноземних фінансових установ | B49: =SUM(B$50:B$50) -> 0.00053875717 | C49: 0.0005645446 | D49: 0.0009833632 | E49: 0.00134076761 | F49: 0.001453225 | G49: 0.0014739288
A50: Chase Manhattan Bank Luxembourg S.A. | B50: 0.00053875717 | C50: 0.0005645446 | D50: 0.0009833632 | E50: 0.00134076761 | F50: 0.001453225 | G50: 0.0014739288
A51: 4. Заборгованість за випущеними цінними паперами на зовнішньому ринку | B51: =SUM(B$52:B$62) -> 104.6362032 | C51: 138.909068 | D51: 272.5093466 | E51: 415.2699327 | F51: 517.8044819 | G51: 516.4367518
A52: ОЗДП 2003 року | B52: 7.993 | C52: 0 | D52: 0 | E52: 0 | F52: 0 | G52: 0
A53: ОЗДП 2005 року | B53: 6.3223032 | C53: 6.624918 | D53: 11.5397448 | E53: 0 | F53: 0 | G53: 0
A54: ОЗДП 2006 року | B54: 7.993 | C54: 7.993 | D54: 15.768556 | E54: 0 | F54: 0 | G54: 0
A55: ОЗДП 2007 року | B55: 5.5951 | C55: 5.5951 | D55: 11.0379892 | E55: 0 | F55: 0 | G55: 0
A56: ОЗДП 2010 року | B56: 15.986 | C56: 15.986 | D56: 31.537112 | E56: 0 | F56: 0 | G56: 0
A57: ОЗДП 2011 року | B57: 21.98075 | C57: 21.98075 | D57: 43.363529 | E57: 0 | F57: 0 | G57: 0
A58: ОЗДП 2012 року | B58: 38.76605 | C58: 46.75905 | D58: 76.4774966 | E58: 0 | F58: 0 | G58: 0
A59: ОЗДП 2013 року | B59: 0 | C59: 33.97025 | D59: 67.016363 | E59: 72.002001 | F59: 81.572574 | G59: 81.357108
A60: ОЗДП 2014 року | B60: 0 | C60: 0 | D60: 15.768556 | E60: 24.000667 | F60: 27.190858 | G60: 27.119036
A61: ОЗДП 2015 року | B61: 0 | C61: 0 | D61: 0 | E61: 319.2672647 | F61: 381.8501919 | G61: 380.8415718
A62: ОЗДП 2016 року | B62: 0 | C62: 0 | D62: 0 | E62: 0 | F62: 27.190858 | G62: 27.119036
A63: 5. Заборгованість, не віднесена до інших категорій | B63: =SUM(B$64:B$64) -> 15.08549003 | C63: 15.16684257 | D63: 28.05435136 | E63: 40.84138642 | F63: 44.88773975 | G63: 45.25194859
A64: Міжнародний Валютний Фонд | B64: 15.08549003 | C64: 15.16684257 | D64: 28.05435136 | E64: 40.84138642 | F64: 44.88773975 | G64: 45.25194859
A65: Гарантований державою борг | B65: =B$66+B$86 -> 116.292599 | C65: 104.5679415 | D65: 153.8027476 | E65: 237.9085577 | F65: 278.9278672 | G65: 279.3291206
A66: Внутрішній борг | B66: =B$67+B$80+B$84 -> 16.2114159 | C66: 27.12914981 | D66: 27.86328456 | E66: 21.45945491 | F66: 19.08447525 | G66: 19.05165624
A67: 1. Заборгованість за випущеними цінними паперами на внутрішньому ринку | B67: =SUM(B$68:B$79) -> 9.971204724 | C67: 21.13576798 | D67: 21.5670116 | E67: 16.4000116 | F67: 15.9500116 | G67: 15.9500116
A68: Векселі Укравтодору | B68: 1.567787124 | C68: 0.9998503833 | D68: 0 | E68: 0 | F68: 0 | G68: 0
A69: Державні цінні папери | B69: 1.16e-05 | C69: 1.16e-05 | D69: 1.16e-05 | E69: 1.16e-05 | F69: 1.16e-05 | G69: 1.16e-05
A70: Облігації ДІУ (10 - річні) | B70: 0 | C70: 0 | D70: 1 | E70: 1 | F70: 1 | G70: 1
A71: Облігації ДІУ (5 - річні) | B71: 1.8175 | C71: 1.8 | D71: 3 | E71: 3 | F71: 3 | G71: 3
A72: Облігації ДІУ (7 - річні) | B72: 0.4 | C72: 1.4 | D72: 3.2 | E72: 3.2 | F72: 3 | G72: 3
A73: Облігації ДП КАЗ "Авіант" (5 - річні) | B73: 0.578906 | C73: 0.578906 | D73: 0 | E73: 0 | F73: 0 | G73: 0
A74: Облігації НАК "Нафтогаз України" (3 - річні) | B74: 0 | C74: 4.8 | D74: 4.8 | E74: 4.8 | F74: 4.8 | G74: 4.8
A75: Облігації Укравтодору (12 - місячні) | B75: 0 | C75: 1.55 | D75: 0 | E75: 0 | F75: 0 | G75: 0
A76: Облігації Укравтодору (3 - річні) | B76: 4 | C76: 4.25 | D76: 4.25 | E76: 0.25 | F76: 0 | G76: 0
A77: Облігації Укравтодору (5 - річні) | B77: 0 | C77: 4.15 | D77: 4.15 | E77: 4.15 | F77: 4.15 | G77: 4.15
A78: Облігації ХДАВП (5 - річні) | B78: 0.88 | C78: 0.88 | D78: 0.44 | E78: 0 | F78: 0 | G78: 0
A79: Облігації ХДАВП (6 - річні) | B79: 0.727 | C79: 0.727 | D79: 0.727 | E79: 0 | F79: 0 | G79: 0
A80: 2. Заборгованість перед банківськими та іншими фінансовими установами | B80: =SUM(B$81:B$83) -> 6.23925653 | C80: 5.992427177 | D80: 6.295318313 | E80: 5.058488656 | F80: 3.133508998 | G80: 3.100689992
A81: ВАТ "Державний експортно-імпортний банк України" | B81: 2.1 | C81: 2.1 | D81: 2.1 | E81: 1.05 | F81: 0 | G81: 0
A82: ВАТ "Державний ощадний банк України" | B82: 4.13925653 | C82: 3.892427177 | D82: 4.009862318 | E82: 3.859862318 | F82: 3.021712318 | G82: 2.998100726
A83: ПАТ АБ "Укргазбанк" | B83: 0 | C83: 0 | D83: 0.1854559944 | E83: 0.1486263374 | F83: 0.1117966802 | G83: 0.1025892659
A84: 3. Заборгованість, не віднесена до інших категорій | B84: =SUM(B$85:B$85) -> 0.00095465 | C84: 0.00095465 | D84: 0.00095465 | E84: 0.00095465 | F84: 0.00095465 | G84: 0.00095465
A85: Інші кредитори | B85: 0.00095465 | C85: 0.00095465 | D85: 0.00095465 | E85: 0.00095465 | F85: 0.00095465 | G85: 0.00095465
A86: Зовнішній борг | B86: =B$87+B$93+B$95+B$97+B$110+B$114 -> 100.0811831 | C86: 77.4387917 | D86: 125.939463 | E86: 216.4491028 | F86: 259.843392 | G86: 260.2774644
A87: 1. Заборгованість за позиками, одержаними від міжнародних фінансових організацій | B87: =SUM(B$88:B$92) -> 40.55783393 | C87: 16.22562155 | D87: 40.11055668 | E87: 140.8338031 | F87: 190.935067 | G87: 192.5097242
A88: Європейське співтоватиство з атомної енергії | B88: 0.3794576859 | C88: 0.3183781317 | D88: 0.4514504503 | E88: 0.4566383727 | F88: 0.2958517627 | G88: 0.2978783374
A89: Європейський банк реконструкції та розвитку | B89: 0.9042426181 | C89: 0.7821906616 | D89: 1.392507257 | E89: 3.050143293 | F89: 10.51454858 | G89: 10.69977657
A90: Європейський Інвестиційний Банк | B90: 0 | C90: 0 | D90: 0 | E90: 0 | F90: 0.99479114 | G90: 1.008963725
A91: Міжнародний банк реконструкції та розвитку | B91: 1.483629802 | C91: 1.948240733 | D91: 5.807737291 | E91: 9.418982998 | F91: 12.37301899 | G91: 12.39322211
A92: Міжнародний Валютний Фонд | B92: 37.79050383 | C92: 13.17681203 | D92: 32.45886168 | E92: 127.9080385 | F92: 166.7568566 | G92: 168.1098835
A93: 2. Заборгованість за позиками, одержаними від органів управління іноземних держав | B93: =SUM(B$94:B$94) -> 1.980933645 | C93: 1.980933645 | D93: 3.842712472 | E93: 4.679066995 | F93: 3.975759701 | G93: 3.304381766
A94: Канада | B94: 1.980933645 | C94: 1.980933645 | D94: 3.842712472 | E94: 4.679066995 | F94: 3.975759701 | G94: 3.304381766
A95: 2. Заборгованість перед банківськими та іншими фінансовими установами | B95: =SUM(B$96:B$96) -> 0 | C95: 0 | D95: 0 | E95: 0 | F95: 0 | G95: 0.0007999719
A96: ВАТ "Державний ощадний банк України" | B96: 0 | C96: 0 | D96: 0 | E96: 0 | F96: 0 | G96: 0.0007999719
A97: 3. Заборгованість за позиками, одержаними від іноземних комерційних банків, інших іноземних фінансових установ | B97: =SUM(B$98:B$109) -> 29.34160084 | C97: 31.0260264 | D97: 51.61602411 | E97: 68.22755055 | F97: 61.95552088 | G97: 61.46135897
A98: Aquasafety Invest plc | B98: 0.3512390631 | C98: 0.1840254926 | D98: 0 | E98: 0 | F98: 0 | G98: 0
A99: Citibank, N.A. London | B99: 1.572913927 | C99: 1.236150671 | D99: 1.435475707 | E99: 0.9786004447 | F99: 0 | G99: 0
A100: Credit Suisse First Boston International | B100: 1.19895 | C100: 1.19895 | D100: 0 | E100: 0 | F100: 0 | G100: 0
A101: Credit Suisse International | B101: 2.014236 | C101: 1.6113888 | D101: 2.384205667 | E101: 2.419267234 | F101: 0 | G101: 0
A102: Deutsche Bank AG London | B102: 0.342557152 | C102: 0.22837144 | D102: 0.2252651127 | E102: 0 | F102: 0.3881279224 | G102: 0.3936575011
A103: UniCredit Bank Austria AG | B103: 0.7165276921 | C103: 0.6569710314 | D103: 0.9808783024 | E103: 1.114482976 | F103: 0.96636853 | G103: 0.980136184
A104: VTB Capital PLC | B104: 3.5233144 | C104: 2.348876277 | D104: 2.316926537 | E104: 0 | F104: 0 | G104: 0
A105: ВАТ "Газпромбанк" | B105: 0 | C105: 3.9965 | D105: 7.884278 | E105: 12.0003335 | F105: 13.595429 | G105: 13.559518
A106: Державний банк розвитку КНР | B106: 0.4630412521 | C106: 0.679405 | D106: 1.34032726 | E106: 1.729968077 | F106: 1.608611159 | G106: 1.60436217
A107: Експортно-імпортний банк Китаю | B107: 11.9895 | C107: 12.40612629 | D107: 24.47475256 | E107: 37.25200875 | F107: 41.84925707 | G107: 41.38532889
A108: Експортно-імпортний банк Кореї | B108: 2.08577335 | C108: 1.825051681 | D108: 3.086103516 | E108: 3.914358784 | F108: 3.547727198 | G108: 3.538356222
A109: Сбербанк Росії | B109: 5.083548 | C109: 4.654209714 | D109: 7.487811449 | E109: 8.818530789 | F109: 0 | G109: 0
A110: 4. Заборгованість за випущеними цінними паперами на зовнішньому ринку | B110: =SUM(B$111:B$113) -> 27.20031488 | C110: 27.20031488 | D110: 28.50954925 | E110: 0 | F110: 0 | G110: 0
A111: Облігації ДП "ФІНІНПРО" (5 - річні) | B111: 4.39615 | C111: 4.39615 | D111: 8.6727058 | E111: 0 | F111: 0 | G111: 0
A112: Облігації ДП "ФІНІНПРО" (7 - річні) | B112: 10.055194 | C112: 10.055194 | D112: 19.83684345 | E112: 0 | F112: 0 | G112: 0
A113: Облігації НАК "Нафтогаз" (5 - річні) | B113: 12.74897088 | C113: 12.74897088 | D113: 0 | E113: 0 | F113: 0 | G113: 0
A114: 5. Заборгованість, не віднесена до інших категорій | B114: =SUM(B$115:B$115) -> 1.000499759 | C114: 1.005895222 | D114: 1.860620486 | E114: 2.708682131 | F114: 2.977044347 | G114: 3.001199403
A115: Міжнародний Валютний Фонд | B115: 1.000499759 | C115: 1.005895222 | D115: 1.860620486 | E115: 2.708682131 | F115: 2.977044347 | G115: 3.001199403

Sheet YKT2_USD
A2: Державний та гарантований державою борг України за останні 5 років
G4: =VALUSD -> млрд. дол. США
B5: 2012-12-31 | C5: 2013-12-31 | D5: 2014-12-31 | E5: 2015-12-31 | F5: 2016-12-31 | G5: 2017-01-31
A6: Загальна сума державного та гарантованого державою боргу | B6: =B$7+B$65 -> 64.49528751 | C6: 73.16233841 | D6: 69.81192296 | E6: 65.50568611 | F6: 70.97095473 | G6: 71.20530263
A7: Державний борг | B7: =B$8+B$33 -> 49.945982 | C7: 60.07989859 | D7: 60.05816063 | E7: 55.59310503 | F7: 60.71280594 | G7: 60.90519017
A8: Внутрішній борг | B8: =B$9+B$31 -> 23.80824443 | C8: 32.14807652 | D8: 29.23562708 | E8: 21.16612522 | F8: 24.66437545 | G8: 24.729493
A9: 1. Заборгованість за випущеними цінними паперами на внутрішньому ринку | B9: =SUM(B$10:B$30) -> 23.42768544 | C9: 31.78406358 | D9: 29.05949789 | E9: 21.05591785 | F9: 24.57196211 | G9: 24.63683492
A10: Казначейські зобов'язання | B10: 0.1033695 | C10: 0.2 | D10: 0.0056077424 | E10: 0.00410980245 | F10: 0 | G10: 0
A11: ОВДП (1 - місячні) | B11: 0 | C11: 0.2953806825 | D11: 0 | E11: 0 | F11: 0 | G11: 0
A12: ОВДП (10 - річні) | B12: 1.928210809 | C12: 1.969496935 | D12: 3.187004885 | E12: 2.523199168 | F12: 2.752137612 | G12: 2.759426368
A13: ОВДП (11 - річні) | B13: 0.4816690854 | C13: 0.4816690854 | D13: 0.2441555841 | E13: 0.7242707463 | F13: 0.6392950528 | G13: 0.6409881605
A14: ОВДП (12 - місячні) | B14: 1.800676983 | C14: 0.3701634931 | D14: 0.4653494892 | E14: 0.345145 | F14: 0.1278948241 | G14: 0.1274960511
A15: ОВДП (12 - річні) | B15: 0.1876642062 | C15: 0.1876642062 | D15: 0.09512602169 | E15: 0.5208188589 | F15: 1.048146403 | G15: 1.050922312
A16: ОВДП (13 - річні) | B16: 0 | C16: 0 | D16: 0.1660031521 | E16: 0.5465527271 | F16: 1.365077557 | G16: 1.368692825
A17: ОВДП (14 - річні) | B17: 0 | C17: 0 | D17: 0.2061063803 | E17: 0.1354129033 | F17: 1.884824672 | G17: 1.889816437
A18: ОВДП (15 - річні) | B18: 0 | C18: 0 | D18: 1.005091398 | E18: 0.6603499811 | F18: 1.573684729 | G18: 1.577852472
A19: ОВДП (18 - місячні) | B19: 0.7142544505 | C19: 0.350735 | D19: 0.04878800063 | E19: 0.04370400039 | F19: 1.076022 | G19: 1.076022
A20: ОВДП (2 - річні) | B20: 1.386007957 | C20: 2.548580788 | D20: 2.594237137 | E20: 0.9129055595 | F20: 2.366730742 | G20: 2.372229795
A21: ОВДП (3 - місячні) | B21: 0 | C21: 0 | D21: 0 | E21: 0 | F21: 0.00036777067 | G21: 0.00036874467
A22: ОВДП (3 - річні) | B22: 3.55989959 | C22: 4.335855935 | D22: 2.954300622 | E22: 1.80733461 | F22: 0.6789923657 | G22: 0.7157077781
A23: ОВДП (4 - річні) | B23: 0.1999585888 | C23: 0.8154841361 | D23: 0.1853170867 | E23: 0.6268620251 | F23: 0.5731903451 | G23: 0.5742846376
A24: ОВДП (5 - річні) | B24: 4.086787602 | C24: 9.422918214 | D24: 8.331756744 | E24: 6.209569597 | F24: 5.574287189 | G24: 5.56631909
A25: ОВДП (6 - місячні) | B25: 0 | C25: 0.06928437383 | D25: 0.01078094912 | E25: 0 | F25: 0.00793652779 | G25: 0.00036874467
A26: ОВДП (6 - річні) | B26: 1.188539972 | C26: 1.188539972 | D26: 1.718610125 | E26: 1.129135286 | F26: 0.886327309 | G26: 0.8886746564
A27: ОВДП (7 - річні) | B27: 4.14050319 | C27: 5.898147254 | D27: 3.464159369 | E27: 2.025976653 | F27: 1.645398281 | G27: 1.64975595
A28: ОВДП (8 - річні) | B28: 1.789215313 | C28: 1.789215313 | D28: 1.98503896 | E28: 1.304180338 | F28: 1.008287344 | G28: 1.01095769
A29: ОВДП (9 - місячні) | B29: 0 | C29: 0 | D29: 0.05358765889 | E29: 0 | F29: 0.00722915769 | G29: 0.00722739555
A30: ОВДП (9 - річні) | B30: 1.860928187 | C30: 1.860928187 | D30: 2.338476586 | E30: 1.536390593 | F30: 1.356132234 | G30: 1.359723812
A31: 2. Заборгованість перед банківськими та іншими фінансовими установами | B31: =SUM(B$32:B$32) -> 0.3805589913 | C31: 0.3640129482 | D31: 0.1761291885 | E31: 0.1102073726 | F31: 0.09241333715 | G31: 0.09265808444
A32: Національний банк України | B32: 0.3805589913 | C32: 0.3640129482 | D32: 0.1761291885 | E32: 0.1102073726 | F32: 0.09241333715 | G32: 0.09265808444
A33: Зовнішній борг | B33: =B$34+B$41+B$49+B$51+B$63 -> 26.13773757 | C33: 27.93182207 | D33: 30.82253355 | E33: 34.42697981 | F33: 36.04843049 | G33: 36.17569716
A34: 1. Заборгованість за позиками, одержаними від міжнародних фінансових організацій | B34: =SUM(B$35:B$40) -> 10.02091869 | C34: 7.744732902 | D34: 10.72323321 | E34: 14.05999638 | F34: 13.67542633 | G34: 13.76189128
A35: Європейське Співтовариство | B35: 0 | C35: 0 | D35: 1.658792021 | E35: 2.414646022 | F35: 2.310113011 | G35: 2.349229978
A36: Європейський банк реконструкції та розвитку | B36: 0.53380904 | C36: 0.5963525277 | D36: 0.5941559335 | E36: 0.582929594 | F36: 0.59109237 | G36: 0.6096240107
A37: Європейський Інвестиційний Банк | B37: 0.4007632038 | C37: 0.5358606974 | D37: 0.4853324518 | E37: 0.5220748706 | F37: 0.5340904563 | G37: 0.5431341693
A38: Міжнародний банк реконструкції та розвитку | B38: 3.031842493 | C38: 3.070129919 | D38: 4.33260866 | E38: 5.197652457 | F38: 5.055394225 | G38: 5.019283232
A39: Міжнародний Валютний Фонд | B39: 6.054503949 | C39: 3.542389758 | D39: 3.651894139 | E39: 5.341838923 | F39: 5.18225106 | G39: 5.238134679
A40: Фонд чистих технологій (МБРР) | B40: 0 | C40: 0 | D40: 0.00045 | E40: 0.0008545125 | F40: 0.00248521025 | G40: 0.00248521025
A41: 2. Заборгованість за позиками, одержаними від органів управління іноземних держав | B41: =SUM(B$42:B$48) -> 1.138433801 | C41: 0.9106629019 | D41: 1.038285415 | E41: 1.362817423 | F41: 1.678781308 | G41: 1.701780047
A42: Італія | B42: 0.01059048492 | C42: 0 | D42: 0 | E42: 0 | F42: 0 | G42: 0
A43: Канада | B43: 0 | C43: 0 | D43: 0.1719946455 | E43: 0.2880759272 | F43: 0.295407655 | G43: 0.3040835227
A44: Німеччина | B44: 0.06029343823 | C44: 0.01332276348 | D44: 0.00853790011 | E44: 0.226168202 | F44: 0.2200474642 | G44: 0.2237735111
A45: Росія | B45: 0.80135586 | C45: 0.70360586 | D45: 0.60585586 | E45: 0.60585586 | F45: 0.60585586 | G45: 0.60585586
A46: США | B46: 0.03313679451 | C46: 0.01187181175 | D46: 0.01044690459 | E46: 0.00902199743 | F46: 0.00759709027 | G46: 0.00759709027
A47: Франція | B47: 0.00277749727 | C47: 0 | D47: 0 | E47: 0 | F47: 0 | G47: 0
A48: Японія | B48: 0.2302797265 | C48: 0.1818624667 | D48: 0.2414501046 | E48: 0.2336954364 | F48: 0.5498732387 | G48: 0.5604700626
A49: 3. Заборгованість за позиками, одержаними від іноземних комерційних банків, інших іноземних фінансових установ | B49: =SUM(B$50:B$50) -> 6.740362e-05 | C49: 7.062988e-05 | D49: 6.236229e-05 | E49: 5.586376e-05 | F49: 5.344535e-05 | G49: 5.435034e-05
A50: Chase Manhattan Bank Luxembourg S.A. | B50: 6.740362e-05 | C50: 7.062988e-05 | D50: 6.236229e-05 | E50: 5.586376e-05 | F50: 5.344535e-05 | G50: 5.435034e-05
A51: 4. Заборгованість за випущеними цінними паперами на зовнішньому ринку | B51: =SUM(B$52:B$62) -> 13.09098001 | C51: 17.37883998 | D51: 17.28182001 | E51: 17.302433 | F51: 19.04333 | G51: 19.04333
A52: ОЗДП 2003 року | B52: 1 | C52: 0 | D52: 0 | E52: 0 | F52: 0 | G52: 0
A53: ОЗДП 2005 року | B53: 0.7909800075 | C53: 0.828839985 | D53: 0.7318200094 | E53: 0 | F53: 0 | G53: 0
A54: ОЗДП 2006 року | B54: 1 | C54: 1 | D54: 1 | E54: 0 | F54: 0 | G54: 0
A55: ОЗДП 2007 року | B55: 0.7 | C55: 0.7 | D55: 0.7 | E55: 0 | F55: 0 | G55: 0
A56: ОЗДП 2010 року | B56: 2 | C56: 2 | D56: 2 | E56: 0 | F56: 0 | G56: 0
A57: ОЗДП 2011 року | B57: 2.75 | C57: 2.75 | D57: 2.75 | E57: 0 | F57: 0 | G57: 0
A58: ОЗДП 2012 року | B58: 4.85 | C58: 5.85 | D58: 4.85 | E58: 0 | F58: 0 | G58: 0
A59: ОЗДП 2013 року | B59: 0 | C59: 4.25 | D59: 4.25 | E59: 3 | F59: 3 | G59: 3
A60: ОЗДП 2014 року | B60: 0 | C60: 0 | D60: 1 | E60: 1 | F60: 1 | G60: 1
A61: ОЗДП 2015 року | B61: 0 | C61: 0 | D61: 0 | E61: 13.302433 | F61: 14.04333 | G61: 14.04333
A62: ОЗДП 2016 року | B62: 0 | C62: 0 | D62: 0 | E62: 0 | F62: 1 | G62: 1
A63: 5. Заборгованість, не віднесена до інших категорій | B63: =SUM(B$64:B$64) -> 1.887337674 | C63: 1.897515648 | D63: 1.779132557 | E63: 1.701677142 | F63: 1.650839402 | G63: 1.668641488
A64: Міжнародний Валютний Фонд | B64: 1.887337674 | C64: 1.897515648 | D64: 1.779132557 | E64: 1.701677142 | F64: 1.650839402 | G64: 1.668641488
A65: Гарантований державою борг | B65: =B$66+B$86 -> 14.54930551 | C65: 13.08243982 | D65: 9.753762333 | E65: 9.912581084 | F65: 10.25814879 | G65: 10.30011246
A66: Внутрішній борг | B66: =B$67+B$80+B$84 -> 2.028201665 | C66: 3.394113576 | D66: 1.767015608 | E66: 0.8941191053 | F66: 0.7018710203 | G66: 0.7025196707
A67: 1. Заборгованість за випущеними цінними паперами на внутрішньому ринку | B67: =SUM(B$68:B$79) -> 1.247492146 | C67: 2.644284747 | D67: 1.367722675 | E67: 0.6833148262 | F67: 0.5865946415 | G67: 0.5881481775
A68: Векселі Укравтодору | B68: 0.1961450174 | C68: 0.1250907523 | D68: 0 | E68: 0 | F68: 0 | G68: 0
A69: Державні цінні папери | B69: 1.45127e-06 | C69: 1.45127e-06 | D69: 7.3564e-07 | E69: 4.8332e-07 | F69: 4.2661e-07 | G69: 4.2774e-07
A70: Облігації ДІУ (10 - річні) | B70: 0 | C70: 0 | D70: 0.06341734779 | E70: 0.04166550871 | F70: 0.03677706676 | G70: 0.03687446707
A71: Облігації ДІУ (5 - річні) | B71: 0.2273864633 | C71: 0.2251970476 | D71: 0.1902520434 | E71: 0.1249965261 | F71: 0.1103312003 | G71: 0.1106234012
A72: Облігації ДІУ (7 - річні) | B72: 0.05004378836 | C72: 0.1751532591 | D72: 0.202935513 | E72: 0.1333296278 | F72: 0.1103312003 | G72: 0.1106234012
A73: Облігації ДП КАЗ "Авіант" (5 - річні) | B73: 0.0724266233 | C73: 0.0724266233 | D73: 0 | E73: 0 | F73: 0 | G73: 0
A74: Облігації НАК "Нафтогаз України" (3 - річні) | B74: 0 | C74: 0.6005254598 | D74: 0.3044032694 | E74: 0.1999944418 | F74: 0.1765299205 | G74: 0.1769974419
A75: Облігації Укравтодору (12 - місячні) | B75: 0 | C75: 0.1939196797 | D75: 0 | E75: 0 | F75: 0 | G75: 0
A76: Облігації Укравтодору (3 - річні) | B76: 0.5004378831 | C76: 0.5317152508 | D76: 0.2695237281 | E76: 0.01041637718 | F76: 0 | G76: 0
A77: Облігації Укравтодору (5 - річні) | B77: 0 | C77: 0.5192043038 | D77: 0.2631819933 | E77: 0.1729118612 | F77: 0.1526248271 | G77: 0.1530290384
A78: Облігації ХДАВП (5 - річні) | B78: 0.1100963343 | C78: 0.1100963343 | D78: 0.02790363302 | E78: 0 | F78: 0 | G78: 0
A79: Облігації ХДАВП (6 - річні) | B79: 0.09095458526 | C79: 0.09095458526 | D79: 0.04610441184 | E79: 0 | F79: 0 | G79: 0
A80: 2. Заборгованість перед банківськими та іншими фінансовими установами | B80: =SUM(B$81:B$83) -> 0.7805900826 | C80: 0.7497093929 | D80: 0.3992323909 | E80: 0.2107645032 | F80: 0.1152412696 | G80: 0.114336291
A81: ВАТ "Державний експортно-імпортний банк України" | B81: 0.2627298887 | C81: 0.2627298887 | D81: 0.1331764304 | E81: 0.04374878415 | F81: 0 | G81: 0
A82: ВАТ "Державний ощадний банк України" | B82: 0.5178601939 | C82: 0.4869795042 | D82: 0.2542948332 | E82: 0.160823127 | F82: 0.1111297157 | G82: 0.1105533665
A83: ПАТ АБ "Укргазбанк" | B83: 0 | C83: 0 | D83: 0.0117611273 | E83: 0.00619259196 | F83: 0.00411155398 | G83: 0.0037829245
A84: 3. Заборгованість, не віднесена до інших категорій | B84: =SUM(B$85:B$85) -> 0.00011943576 | C84: 0.00011943576 | D84: 6.054137e-05 | E84: 3.977598e-05 | F84: 3.510923e-05 | G84: 3.520221e-05
A85: Інші кредитори | B85: 0.00011943576 | C85: 0.00011943576 | D85: 6.054137e-05 | E85: 3.977598e-05 | F85: 3.510923e-05 | G85: 3.520221e-05
A86: Зовнішній борг | B86: =B$87+B$93+B$95+B$97+B$110+B$114 -> 12.52110385 | C86: 9.688326248 | D86: 7.986746725 | E86: 9.018461978 | F86: 9.556277774 | G86: 9.597592789
A87: 1. Заборгованість за позиками, одержаними від міжнародних фінансових організацій | B87: =SUM(B$88:B$92) -> 5.07416914 | C87: 2.029978926 | D87: 2.543705123 | E87: 5.867912051 | F87: 7.022031708 | G87: 7.098693488
A88: Європейське співтоватиство з атомної енергії | B88: 0.04747375027 | C88: 0.03983211956 | D88: 0.02862979021 | E88: 0.0190260701 | F88: 0.01088056003 | G88: 0.01098410494
A89: Європейський банк реконструкції та розвитку | B89: 0.1131293154 | C89: 0.09785945972 | D89: 0.08830911699 | E89: 0.127085772 | F89: 0.3866942552 | G89: 0.3945485589
A90: Європейський Інвестиційний Банк | B90: 0 | C90: 0 | D90: 0 | E90: 0 | F90: 0.03658550017 | G90: 0.03720499965
A91: Міжнародний банк реконструкції та розвитку | B91: 0.1856161394 | C91: 0.2437433671 | D91: 0.3683112957 | E91: 0.3924467181 | F91: 0.4550433454 | G91: 0.4569934608
A92: Міжнародний Валютний Фонд | B92: 4.727949934 | C92: 1.648543979 | D92: 2.05845492 | E92: 5.329353491 | F92: 6.132828047 | G92: 6.198962364
A93: 2. Заборгованість за позиками, одержаними від органів управління іноземних держав | B93: =SUM(B$94:B$94) -> 0.24783356 | C93: 0.24783356 | D93: 0.2436946333 | E93: 0.1949557066 | F93: 0.14621678 | G93: 0.1218473166
A94: Канада | B94: 0.24783356 | C94: 0.24783356 | D94: 0.2436946333 | E94: 0.1949557066 | F94: 0.14621678 | G94: 0.1218473166
A95: 2. Заборгованість перед банківськими та іншими фінансовими установами | B95: =SUM(B$96:B$96) -> 0 | C95: 0 | D95: 0 | E95: 0 | F95: 0 | G95: 2.949854e-05
A96: ВАТ "Державний ощадний банк України" | B96: 0 | C96: 0 | D96: 0 | E96: 0 | F96: 0 | G96: 2.949854e-05
A97: 3. Заборгованість за позиками, одержаними від іноземних комерційних банків, інших іноземних фінансових установ | B97: =SUM(B$98:B$109) -> 3.670912153 | C97: 3.881649744 | D97: 3.273351352 | E97: 2.842735602 | F97: 2.278542328 | G97: 2.266354858
A98: Aquasafety Invest plc | B98: 0.04394333331 | C98: 0.023023332 | D98: 0 | E98: 0 | F98: 0 | G98: 0
A99: Citibank, N.A. London | B99: 0.196786429 | C99: 0.1546541562 | D99: 0.09103406216 | E99: 0.04077388535 | F99: 0 | G99: 0
A100: Credit Suisse First Boston International | B100: 0.15 | C100: 0.15 | D100: 0 | E100: 0 | F100: 0 | G100: 0
A101: Credit Suisse International | B101: 0.252 | C101: 0.2016 | D101: 0.1512 | E101: 0.1008 | F101: 0 | G101: 0
A102: Deutsche Bank AG London | B102: 0.042857144 | C102: 0.02857143 | D102: 0.014285716 | E102: 0 | F102: 0.01427420651 | G102: 0.01451591056
A103: UniCredit Bank Austria AG | B103: 0.08964440036 | C103: 0.08219329806 | D103: 0.06220470044 | E103: 0.04643550014 | F103: 0.03554019995 | G103: 0.03614199944
A104: VTB Capital PLC | B104: 0.4408 | C104: 0.293866668 | D104: 0.146933336 | E104: 0 | F104: 0 | G104: 0
A105: ВАТ "Газпромбанк" | B105: 0 | C105: 0.5 | D105: 0.5 | E105: 0.5 | F105: 0.5 | G105: 0.5
A106: Державний банк розвитку КНР | B106: 0.057930846 | C106: 0.085 | D106: 0.085 | E106: 0.07208 | F106: 0.05916 | G106: 0.05916
A107: Експортно-імпортний банк Китаю | B107: 1.5 | C107: 1.552123895 | D107: 1.552123895 | E107: 1.552123895 | F107: 1.539092921 | G107: 1.526061947
A108: Експортно-імпортний банк Кореї | B108: 0.26095 | C108: 0.22833125 | D108: 0.1957125 | E108: 0.16309375 | F108: 0.130475 | G108: 0.130475
A109: Сбербанк Росії | B109: 0.636 | C109: 0.5822857143 | D109: 0.4748571429 | E109: 0.3674285714 | F109: 0 | G109: 0
A110: 4. Заборгованість за випущеними цінними паперами на зовнішньому ринку | B110: =SUM(B$111:B$113) -> 3.403017 | C110: 3.403017 | D110: 1.808 | E110: 0 | F110: 0 | G110: 0
A111: Облігації ДП "ФІНІНПРО" (5 - річні) | B111: 0.55 | C111: 0.55 | D111: 0.55 | E111: 0 | F111: 0 | G111: 0
A112: Облігації ДП "ФІНІНПРО" (7 - річні) | B112: 1.258 | C112: 1.258 | D112: 1.258 | E112: 0 | F112: 0 | G112: 0
A113: Облігації НАК "Нафтогаз" (5 - річні) | B113: 1.595017 | C113: 1.595017 | D113: 0 | E113: 0 | F113: 0 | G113: 0
A114: 5. Заборгованість, не віднесена до інших категорій | B114: =SUM(B$115:B$115) -> 0.1251719954 | C114: 0.1258470189 | D114: 0.1179956164 | E114: 0.1128586189 | F114: 0.1094869587 | G114: 0.1106676285
A115: Міжнародний Валютний Фонд | B115: 0.1251719954 | C115: 0.1258470189 | D115: 0.1179956164 | E115: 0.1128586189 | F115: 0.1094869587 | G115: 0.1106676285

Sheet KIND_CMP (hidden)
B1: ="Державний та гарантований державою борг України за станом на " & TEXT(DREPORTDATE,"dd.MM.yyyy") -> Державний та гарантований державою борг України за станом на 31.01.2017
A2: Структура боргу за ознакою умовності на кінець попереднього року та на звітну дату
H4: тис.одиниць | I4: =VALVAL -> млрд. одиниць
B5: 2016-12-31 | E5: 2017-01-31
B6: дол.США | C6: грн. | D6: % | E6: дол.США | F6: грн. | G6: % | H6: % | I6: Зміна структури
A7: Загальна сума державного та гарантованого державою боргу | B7: =SUM(B$8+ B$9) -> 70.97095473 | C7: 1929.761152 | D7: 1 | E7: 71.20530263 | F7: 1931.019165 | G7: 1 | I7: =SUM(I$8+ I$9) -> 0
A8: Державний борг | B8: 60.71280594 | C8: 1650.833285 | D8: 0.85546 | E8: 60.90519017 | F8: 1651.690045 | G8: 0.855346 | H8: -0.000114 | I8: -21.4
A9: Гарантований державою борг | B9: 10.25814879 | C9: 278.9278672 | D9: 0.14454 | E9: 10.30011246 | F9: 279.3291206 | G9: 0.144654 | H9: 0.000114 | I9: 21.4

Sheet DTR (hidden)
A2: Структура державного та гарантованого державою боргу в розрізі термінів погашення
D4: =VALVAL -> млрд. одиниць
B5: дол.США | C5: грн. | D5: % | E5: FORMAT
A6: Загальна сума державного та гарантованого державою боргу | B6: =SUM(B$7+ B$8+ B$9) -> 71.20530263 | C6: 1931.019165 | D6: 1.000001 | E6: 3
A7: 2017.01.31-2017.12.31 | B7: 3.328893587 | C7: 90.27638501 | D7: 0.046751 | E7: 1
A8: 2018-2022 | B8: 31.74572215 | C8: 860.9133818 | D8: 0.445834 | E8: 1
A9: 2022-31.12.2060 | B9: 36.1306869 | C9: 979.8293986 | D9: 0.507416 | E9: 1

Sheet DEBT_TERM (hidden)
A3: Державний та гарантований державою борг України
A4: =" за станом на " & TEXT(DREPORTDATE,"dd.MM.yyyy") -> за станом на 31.01.2017
A5: (в розрізі середнього терміну обігу та середньої ставки)
B8: Середня ставка, % | C8: Середній термін обігу, років | D8: Середній термін до погашення, років | E8: ="Сума боргу " & VALVAL -> Сума боргу млрд. одиниць | F8: IS_CHART_DATA | G8: IS_OVDP | H8: FORMAT
A9: Державний та гарантований державою борг України | B9: 24.783 | C9: 10.95 | D9: 8.12 | E9: 1931019165 | F9: 0 | G9: 0 | H9: 3 | I9: =IF(A9="","",A9 & "; " &B9 & "%; "&C9 &"р.") -> Державний та гарантований державою борг України; 24,783%; 10,95р. | J9: =E9 -> 1931019165
A10: Державний борг | B10: 25.277 | C10: 10.7 | D10: 7.9 | E10: 1651690045 | F10: 0 | G10: 0 | H10: 2 | I10: Державний борг; 25,277%; 10,7р. | J10: 1651690045
A11: Державний внутрішній борг | B11: 53.719 | C11: 7.78 | D11: 5.54 | E11: 670640011.1 | F11: 1 | G11: 0 | H11: 0 | I11: Державний внутрішній борг; 53,719%; 7,78р. | J11: 670640011.1
A12: в т.ч. ОВДП | B12: 53.902 | C12: 7.67 | D12: 5.49 | E12: 668127213.1 | F12: 0 | G12: 0 | H12: 0 | I12: в т.ч. ОВДП; 53,902%; 7,67р. | J12: 668127213.1
A13: ОВДП (1 - місячні) | B13: 0 | C13: 0 | D13: 0 | E13: 0 | F13: 0 | G13: 1 | H13: 0 | I13: ОВДП (1 - місячні); 0%; 0р. | J13: 0
A14: ОВДП (10 - річні) | B14: 17.321 | C14: 9.93 | D14: 7.02 | E14: 72402983 | F14: 0 | G14: 1 | H14: 0 | I14: ОВДП (10 - річні); 17,321%; 9,93р. | J14: 72402983
A15: ОВДП (11 - річні) | B15: 11.221 | C15: 10.99 | D15: 8.18 | E15: 17382981 | F15: 0 | G15: 1 | H15: 0 | I15: ОВДП (11 - річні); 11,221%; 10,99р. | J15: 17382981
A16: ОВДП (12 - місячні) | B16: 0.428 | C16: 0.91 | D16: 0.4 | E16: 3457570 | F16: 0 | G16: 1 | H16: 0 | I16: ОВДП (12 - місячні); 0,428%; 0,91р. | J16: 3457570
A17: ОВДП (12 - річні) | B17: 8.182 | C17: 12.14 | D17: 11.24 | E17: 28500000 | F17: 0 | G17: 1 | H17: 0 | I17: ОВДП (12 - річні); 8,182%; 12,14р. | J17: 28500000
A18: ОВДП (13 - річні) | B18: 8.726 | C18: 13.1 | D18: 12.55 | E18: 37117630 | F18: 0 | G18: 1 | H18: 0 | I18: ОВДП (13 - річні); 8,726%; 13,1р. | J18: 37117630
A19: ОВДП (14 - річні) | B19: 8.211 | C19: 14.03 | D19: 13.81 | E19: 51250000 | F19: 0 | G19: 1 | H19: 0 | I19: ОВДП (14 - річні); 8,211%; 14,03р. | J19: 51250000
A20: ОВДП (15 - річні) | B20: 8.346 | C20: 13.42 | D20: 12.56 | E20: 42789838 | F20: 0 | G20: 1 | H20: 0 | I20: ОВДП (15 - річні); 8,346%; 13,42р. | J20: 42789838
A21: ОВДП (18 - місячні) | B21: 77.87 | C21: 1.48 | D21: 0.8 | E21: 29180679.35 | F21: 0 | G21: 1 | H21: 0 | I21: ОВДП (18 - місячні); 77,87%; 1,48р. | J21: 29180679.35
A22: ОВДП (2 - річні) | B22: 109.991 | C22: 1.98 | D22: 1.34 | E22: 64332585.22 | F22: 0 | G22: 1 | H22: 0 | I22: ОВДП (2 - річні); 109,991%; 1,98р. | J22: 64332585.22
A23: ОВДП (3 - місячні) | B23: 0 | C23: 0.25 | D23: 0.1 | E23: 10000 | F23: 0 | G23: 1 | H23: 0 | I23: ОВДП (3 - місячні); 0%; 0,25р. | J23: 10000
A24: ОВДП (3 - річні) | B24: 427.817 | C24: 2.9 | D24: 1.37 | E24: 19409305 | F24: 0 | G24: 1 | H24: 0 | I24: ОВДП (3 - річні); 427,817%; 2,9р. | J24: 19409305
A25: ОВДП (4 - річні) | B25: 14.504 | C25: 4.32 | D25: 2.42 | E25: 11230000 | F25: 0 | G25: 1 | H25: 0 | I25: ОВДП (4 - річні); 14,504%; 4,32р. | J25: 11230000
A26: ОВДП (5 - річні) | B26: 28.276 | C26: 4.99 | D26: 2.85 | E26: 84845701.8 | F26: 0 | G26: 1 | H26: 0 | I26: ОВДП (5 - річні); 28,276%; 4,99р. | J26: 84845701.8
A27: ОВДП (6 - місячні) | B27: 0 | C27: 0.5 | D27: 0.35 | E27: 10000 | F27: 0 | G27: 1 | H27: 0 | I27: ОВДП (6 - місячні); 0%; 0,5р. | J27: 10000
A28: ОВДП (6 - річні) | B28: 14.3 | C28: 6.42 | D28: 3.82 | E28: 17600000 | F28: 0 | G28: 1 | H28: 0 | I28: ОВДП (6 - річні); 14,3%; 6,42р. | J28: 17600000
A29: ОВДП (7 - річні) | B29: 11.411 | C29: 6.98 | D29: 4.41 | E29: 13580900 | F29: 0 | G29: 1 | H29: 0 | I29: ОВДП (7 - річні); 11,411%; 6,98р. | J29: 13580900
A30: ОВДП (8 - річні) | B30: 12.244 | C30: 8.14 | D30: 3.9 | E30: 26316198 | F30: 0 | G30: 1 | H30: 0 | I30: ОВДП (8 - річні); 12,244%; 8,14р. | J30: 26316198
A31: ОВДП (9 - місячні) | B31: 0 | C31: 0.75 | D31: 0.08 | E31: 196000 | F31: 0 | G31: 1 | H31: 0 | I31: ОВДП (9 - місячні); 0%; 0,75р. | J31: 196000
A32: ОВДП (9 - річні) | B32: 11.669 | C32: 9.06 | D32: 4.75 | E32: 35774399 | F32: 0 | G32: 1 | H32: 0 | I32: ОВДП (9 - річні); 11,669%; 9,06р. | J32: 35774399
A33: Казначейські зобов'язання | B33: 0 | C33: 0 | D33: 0 | E33: 0 | F33: 0 | G33: 1 | H33: 0 | I33: Казначейські зобов'язання; 0%; 0р. | J33: 0
A34: ОВДП (1 - місячні) | B34: 0 | C34: 0 | D34: 0 | E34: 0 | F34: 0 | G34: 1 | H34: 0 | I34: ОВДП (1 - місячні); 0%; 0р. | J34: 0
A35: ОВДП (10 - річні) | B35: 9.465 | C35: 10.03 | D35: 4.84 | E35: 2430000 | F35: 0 | G35: 1 | H35: 0 | I35: ОВДП (10 - річні); 9,465%; 10,03р. | J35: 2430000
A36: ОВДП (12 - місячні) | B36: 0 | C36: 0 | D36: 0 | E36: 0 | F36: 0 | G36: 1 | H36: 0 | I36: ОВДП (12 - місячні); 0%; 0р. | J36: 0
A37: ОВДП (18 - місячні) | B37: 0 | C37: 0 | D37: 0 | E37: 0 | F37: 0 | G37: 1 | H37: 0 | I37: ОВДП (18 - місячні); 0%; 0р. | J37: 0
A38: ОВДП (2 - річні) | B38: 0 | C38: 0 | D38: 0 | E38: 0 | F38: 0 | G38: 1 | H38: 0 | I38: ОВДП (2 - річні); 0%; 0р. | J38: 0
A39: ОВДП (3 - місячні) | B39: 0 | C39: 0 | D39: 0 | E39: 0 | F39: 0 | G39: 1 | H39: 0 | I39: ОВДП (3 - місячні); 0%; 0р. | J39: 0
A40: ОВДП (3 - річні) | B40: 0 | C40: 0 | D40: 0 | E40: 0 | F40: 0 | G40: 1 | H40: 0 | I40: ОВДП (3 - річні); 0%; 0р. | J40: 0
A41: ОВДП (4 - річні) | B41: 744.282 | C41: 3.97 | D41: 0.29 | E41: 4344045.76 | F41: 0 | G41: 1 | H41: 0 | I41: ОВДП (4 - річні); 744,282%; 3,97р. | J41: 4344045.76
A42: ОВДП (5 - річні) | B42: 73.515 | C42: 4.9 | D42: 1.12 | E42: 66107506 | F42: 0 | G42: 1 | H42: 0 | I42: ОВДП (5 - річні); 73,515%; 4,9р. | J42: 66107506
A43: ОВДП (6 - місячні) | B43: 0 | C43: 0 | D43: 0 | E43: 0 | F43: 0 | G43: 1 | H43: 0 | I43: ОВДП (6 - місячні); 0%; 0р. | J43: 0
A44: ОВДП (6 - річні) | B44: 9.5 | C44: 6.18 | D44: 0.7 | E44: 6500000 | F44: 0 | G44: 1 | H44: 0 | I44: ОВДП (6 - річні); 9,5%; 6,18р. | J44: 6500000
A45: ОВДП (7 - річні) | B45: 117.744 | C45: 6.98 | D45: 2.63 | E45: 31158891 | F45: 0 | G45: 1 | H45: 0 | I45: ОВДП (7 - річні); 117,744%; 6,98р. | J45: 31158891
A46: ОВДП (8 - річні) | B46: 9.5 | C46: 7.92 | D46: 2.28 | E46: 1100000 | F46: 0 | G46: 1 | H46: 0 | I46: ОВДП (8 - річні); 9,5%; 7,92р. | J46: 1100000
A47: ОВДП (9 - місячні) | B47: 0 | C47: 0 | D47: 0 | E47: 0 | F47: 0 | G47: 1 | H47: 0 | I47: ОВДП (9 - місячні); 0%; 0р. | J47: 0
A48: ОВДП (9 - річні) | B48: 9.5 | C48: 8.93 | D48: 3.3 | E48: 1100000 | F48: 0 | G48: 1 | H48: 0 | I48: ОВДП (9 - річні); 9,5%; 8,93р. | J48: 1100000
A49: Державний зовнішній борг | B49: 5.834 | C49: 12.69 | D49: 9.51 | E49: 981050033.7 | F49: 1 | G49: 0 | H49: 0 | I49: Державний зовнішній борг; 5,834%; 12,69р. | J49: 981050033.7
A50: в т.ч. ОЗДП | B50: 6.367 | C50: 7.21 | D50: 5.63 | E50: 516436751.8 | F50: 0 | G50: 0 | H50: 0 | I50: в т.ч. ОЗДП; 6,367%; 7,21р. | J50: 516436751.8
A51: Гарантований борг | B51: 21.86 | C51: 12.45 | D51: 9.42 | E51: 279329120.6 | F51: 0 | G51: 0 | H51: 2 | I51: Гарантований борг; 21,86%; 12,45р. | J51: 279329120.6
A52: Гарантований внутрішній борг | B52: 141.193 | C52: 6.22 | D52: 2.35 | E52: 19051656.24 | F52: 1 | G52: 0 | H52: 0 | I52: Гарантований внутрішній борг; 141,193%; 6,22р. | J52: 19051656.24
A53: Гарантований зовнішній борг | B53: 13.125 | C53: 12.9 | D53: 9.94 | E53: 260277464.4 | F53: 1 | G53: 0 | H53: 0 | I53: Гарантований зовнішній борг; 13,125%; 12,9р. | J53: 260277464.4
A54: в т.ч. ОЗДП | J54: 0
J55: 0
J56: 0
J57: 0
J58: 0
J59: 0
J60: 0
J61: 0

Sheet K_ALL (hidden)
A2: Державний та гарантований державою борг України за станом на ReportDate (за ознакою умовності)

Sheet T_ALL (hidden)
A2: Державний та гарантований державою борг України за станом на ReportDate (за типом боргу)

Sheet YKT2_PRC (hidden)
A2: Державний та гарантований державою борг України за останні 5 років
G4: %

Sheet TBL1 (hidden)

Sheet DTK2
A2: ="Державний та гарантований державою борг України за станом на " & TEXT(DREPORTDATE,"dd.MM.yyyy") -> Державний та гарантований державою борг України за станом на 31.01.2017
A3: (за типом кредитора)
B4: офіційний курс НБУ 27,119036 грн./дол.США
D5: =VALVAL -> млрд. одиниць
B6: дол.США | C6: грн. | D6: %
A7: Загальна сума державного та гарантованого державою боргу | B7: =B$8+B$45 -> 71.20530263 | C7: 1931.019165 | D7: 1.000002
A8: Внутрішній борг | B8: =B$9+B$32 -> 25.43201268 | C8: 689.6916673 | D8: 0.357165
A9: Державний борг | B9: =B$10+B$30 -> 24.729493 | C9: 670.6400111 | D9: 0.347298
A10: 1. Заборгованість за випущеними цінними паперами на внутрішньому ринку | B10: =SUM(B$11:B$29) -> 24.63683492 | C10: 668.1272131 | D10: 0.345997
A11: ОВДП (10 - річні) | B11: 2.759426368 | C11: 74.832983 | D11: 0.038753
A12: ОВДП (11 - річні) | B12: 0.6409881605 | C12: 17.382981 | D12: 0.009002
A13: ОВДП (12 - місячні) | B13: 0.1274960511 | C13: 3.45757 | D13: 0.001791
A14: ОВДП (12 - річні) | B14: 1.050922312 | C14: 28.5 | D14: 0.014759
A15: ОВДП (13 - річні) | B15: 1.368692825 | C15: 37.11763 | D15: 0.019222
A16: ОВДП (14 - річні) | B16: 1.889816437 | C16: 51.25 | D16: 0.02654
A17: ОВДП (15 - річні) | B17: 1.577852472 | C17: 42.789838 | D17: 0.022159
A18: ОВДП (18 - місячні) | B18: 1.076022 | C18: 29.18067935 | D18: 0.015112
A19: ОВДП (2 - річні) | B19: 2.372229795 | C19: 64.33258522 | D19: 0.033315
A20: ОВДП (3 - місячні) | B20: 0.00036874467 | C20: 0.01 | D20: 5e-06
A21: ОВДП (3 - річні) | B21: 0.7157077781 | C21: 19.409305 | D21: 0.010051
A22: ОВДП (4 - річні) | B22: 0.5742846376 | C22: 15.57404576 | D22: 0.008065
A23: ОВДП (5 - річні) | B23: 5.56631909 | C23: 150.9532078 | D23: 0.078173
A24: ОВДП (6 - місячні) | B24: 0.00036874467 | C24: 0.01 | D24: 5e-06
A25: ОВДП (6 - річні) | B25: 0.8886746564 | C25: 24.1 | D25: 0.01248
A26: ОВДП (7 - річні) | B26: 1.64975595 | C26: 44.739791 | D26: 0.023169
A27: ОВДП (8 - річні) | B27: 1.01095769 | C27: 27.416198 | D27: 0.014198
A28: ОВДП (9 - місячні) | B28: 0.00722739555 | C28: 0.196 | D28: 0.000102
A29: ОВДП (9 - річні) | B29: 1.359723812 | C29: 36.874399 | D29: 0.019096
A30: 2. Заборгованість перед банківськими та іншими фінансовими установами | B30: =SUM(B$31:B$31) -> 0.09265808444 | C30: 2.512797928 | D30: 0.001301
A31: Національний банк України | B31: 0.09265808444 | C31: 2.512797928 | D31: 0.001301
A32: Гарантований державою борг | B32: =B$33+B$40+B$43 -> 0.7025196707 | C32: 19.05165624 | D32: 0.009867
A33: 1. Заборгованість за випущеними цінними паперами на внутрішньому ринку | B33: =SUM(B$34:B$39) -> 0.5881481775 | C33: 15.9500116 | D33: 0.008261
A34: Державні цінні папери | B34: 4.2774e-07 | C34: 1.16e-05 | D34: 0
A35: Облігації ДІУ (10 - річні) | B35: 0.03687446707 | C35: 1 | D35: 0.000518
A36: Облігації ДІУ (5 - річні) | B36: 0.1106234012 | C36: 3 | D36: 0.001554
A37: Облігації ДІУ (7 - річні) | B37: 0.1106234012 | C37: 3 | D37: 0.001554
A38: Облігації НАК "Нафтогаз України" (3 - річні) | B38: 0.1769974419 | C38: 4.8 | D38: 0.002486
A39: Облігації Укравтодору (5 - річні) | B39: 0.1530290384 | C39: 4.15 | D39: 0.002149
A40: 2. Заборгованість перед банківськими та іншими фінансовими установами | B40: =SUM(B$41:B$42) -> 0.114336291 | C40: 3.100689992 | D40: 0.001606
A41: ВАТ "Державний ощадний банк України" | B41: 0.1105533665 | C41: 2.998100726 | D41: 0.001553
A42: ПАТ АБ "Укргазбанк" | B42: 0.0037829245 | C42: 0.1025892659 | D42: 5.3e-05
A43: 3. Заборгованість, не віднесена до інших категорій | B43: =SUM(B$44:B$44) -> 3.520221e-05 | C43: 0.00095465 | D43: 0
A44: Інші кредитори | B44: 3.520221e-05 | C44: 0.00095465 | D44: 0
A45: Зовнішній борг | B45: =B$46+B$69 -> 45.77328995 | C45: 1241.327498 | D45: 0.642837
A46: Державний борг | B46: =B$47+B$54+B$60+B$62+B$67 -> 36.17569716 | C46: 981.0500337 | D46: 0.508049
A47: 1. Заборгованість за позиками, одержаними від міжнародних фінансових організацій | B47: =SUM(B$48:B$53) -> 13.76189128 | C47: 373.209225 | D47: 0.19327
A48: Європейське Співтовариство | B48: 2.349229978 | C48: 63.70885235 | D48: 0.032992
A49: Європейський банк реконструкції та розвитку | B49: 0.6096240107 | C49: 16.53241549 | D49: 0.008561
A50: Європейський Інвестиційний Банк | B50: 0.5431341693 | C50: 14.72927509 | D50: 0.007628
A51: Міжнародний банк реконструкції та розвитку | B51: 5.019283232 | C51: 136.1181227 | D51: 0.07049
A52: Міжнародний Валютний Фонд | B52: 5.238134679 | C52: 142.0531629 | D52: 0.073564
A53: Фонд чистих технологій (МБРР) | B53: 0.00248521025 | C53: 0.06739650623 | D53: 3.5e-05
A54: 2. Заборгованість за позиками, одержаними від органів управління іноземних держав | B54: =SUM(B$55:B$59) -> 1.701780047 | C54: 46.15063435 | D54: 0.023901
A55: Канада | B55: 0.3040835227 | C55: 8.246452 | D55: 0.004271
A56: Німеччина | B56: 0.2237735111 | C56: 6.068521905 | D56: 0.003143
A57: Росія | B57: 0.60585586 | C57: 16.43022688 | D57: 0.008509
A58: США | B58: 0.00759709027 | C58: 0.2060257645 | D58: 0.000107
A59: Японія | B59: 0.5604700626 | C59: 15.1994078 | D59: 0.007871
A60: 3. Заборгованість за позиками, одержаними від іноземних комерційних банків, інших іноземних фінансових установ | B60: =SUM(B$61:B$61) -> 5.435034e-05 | C60: 0.0014739288 | D60: 1e-06
A61: Chase Manhattan Bank Luxembourg S.A. | B61: 5.435034e-05 | C61: 0.0014739288 | D61: 1e-06
A62: 4. Заборгованість за випущеними цінними паперами на зовнішньому ринку | B62: =SUM(B$63:B$66) -> 19.04333 | C62: 516.4367518 | D62: 0.267443
A63: ОЗДП 2013 року | B63: 3 | C63: 81.357108 | D63: 0.042132
A64: ОЗДП 2014 року | B64: 1 | C64: 27.119036 | D64: 0.014044
A65: ОЗДП 2015 року | B65: 14.04333 | C65: 380.8415718 | D65: 0.197223
A66: ОЗДП 2016 року | B66: 1 | C66: 27.119036 | D66: 0.014044
A67: 5. Заборгованість, не віднесена до інших категорій | B67: =SUM(B$68:B$68) -> 1.668641488 | C67: 45.25194859 | D67: 0.023434
A68: Міжнародний Валютний Фонд | B68: 1.668641488 | C68: 45.25194859 | D68: 0.023434
A69: Гарантований державою борг | B69: =B$70+B$76+B$78+B$80+B$87+B$88 -> 9.597592789 | C69: 260.2774644 | D69: 0.134788
A70: 1. Заборгованість за позиками, одержаними від міжнародних фінансових організацій | B70: =SUM(B$71:B$75) -> 7.098693488 | C70: 192.5097242 | D70: 0.099694
A71: Європейське співтоватиство з атомної енергії | B71: 0.01098410494 | C71: 0.2978783374 | D71: 0.000154
A72: Європейський банк реконструкції та розвитку | B72: 0.3945485589 | C72: 10.69977657 | D72: 0.005541
A73: Європейський Інвестиційний Банк | B73: 0.03720499965 | C73: 1.008963725 | D73: 0.000523
A74: Міжнародний банк реконструкції та розвитку | B74: 0.4569934608 | C74: 12.39322211 | D74: 0.006418
A75: Міжнародний Валютний Фонд | B75: 6.198962364 | C75: 168.1098835 | D75: 0.087058
A76: 2. Заборгованість за позиками, одержаними від органів управління іноземних держав | B76: =SUM(B$77:B$77) -> 0.1218473166 | C76: 3.304381766 | D76: 0.001711
A77: Канада | B77: 0.1218473166 | C77: 3.304381766 | D77: 0.001711
A78: 2. Заборгованість перед банківськими та іншими фінансовими установами | B78: =SUM(B$79:B$79) -> 2.949854e-05 | C78: 0.0007999719 | D78: 0
A79: ВАТ "Державний ощадний банк України" | B79: 2.949854e-05 | C79: 0.0007999719 | D79: 0
A80: 3. Заборгованість за позиками, одержаними від іноземних комерційних банків, інших іноземних фінансових установ | B80: =SUM(B$81:B$86) -> 2.266354858 | C80: 61.46135897 | D80: 0.031829
A81: Deutsche Bank AG London | B81: 0.01451591056 | C81: 0.3936575011 | D81: 0.000204
A82: UniCredit Bank Austria AG | B82: 0.03614199944 | C82: 0.980136184 | D82: 0.000508
A83: ВАТ "Газпромбанк" | B83: 0.5 | C83: 13.559518 | D83: 0.007022
A84: Державний банк розвитку КНР | B84: 0.05916 | C84: 1.60436217 | D84: 0.000831
A85: Експортно-імпортний банк Китаю | B85: 1.526061947 | C85: 41.38532889 | D85: 0.021432
A86: Експортно-імпортний банк Кореї | B86: 0.130475 | C86: 3.538356222 | D86: 0.001832
A87: 4. Заборгованість за випущеними цінними паперами на зовнішньому ринку
A88: 5. Заборгованість, не віднесена до інших категорій | B88: =SUM(B$89:B$89) -> 0.1106676285 | C88: 3.001199403 | D88: 0.001554
A89: Міжнародний Валютний Фонд | B89: 0.1106676285 | C89: 3.001199403 | D89: 0.001554

Sheet DATA
A1: STOP
A3: Дата отчета | B3: 2017-01-31 | C3: =DREPORTDATE -> 2017-01-31
A4: Единицы измерения | B4: 1000000000 | C4: =IF($B$4=1,"дол. США",IF($B$4=1000,"тис. дол. США",IF($B$4=1000000,"млн. дол. США",IF($B$4=1000000000,"млрд. дол. США")))) -> млрд. дол. США | D4: =IF($B$4=1,"грн",IF($B$4=1000,"тис. грн",IF($B$4=1000000,"млн. грн",IF($B$4=1000000000,"млрд. грн")))) -> млрд. грн | E4: =IF($B$4=1,"одиниць",IF($B$4=1000,"тис. одиниць",IF($B$4=1000000,"млн. одиниць",IF($B$4=1000000000,"млрд. одиниць")))) -> млрд. одиниць | F4: =1000000000/DDELIMER -> 1 | G4: =IF($B$4=1,1000000000,IF($B$4=1000,1000000,IF($B$4=1000000,1000,IF($B$4=1000000000,1)))) -> 1
A5: Сессия | B5: 26a9703e-faf2-426c-a3f2-2a443fbaee02
A8: SHORT
A12: 1000000000

Sheet AVGRATE_DETAIL (hidden)
